Department family,Entity,Date,Expense type,Expense area,Supplier,Transaction number,Amount,VAT registration number,
Department for Business Innovation and Skills,Intellectual Property Office,11/02/2016,Network and infrastructure H/W,IT Directorate,Amz*ballicom Limited,H57720160213ihirtwoew,155.65,Not Applicable,
Department for Business Innovation and Skills,Intellectual Property Office,08/02/2016,Network and infrastructure H/W,IT Directorate,Amazon UK Marketplace,H57720160210fsanodbok,457.89,Not Applicable,
Department for Business Innovation and Skills,Intellectual Property Office,08/02/2016,Network and infrastructure H/W,IT Directorate,Amazon UK Marketplace,H57720160210vpuggigwl,87.49,Not Applicable,
Department for Business Innovation and Skills,Intellectual Property Office,29/01/2016,Network and infrastructure H/W,IT Directorate,Currys S/s,H57720160202ltaofoica,-34.99,Not Applicable,
Department for Business Innovation and Skills,Intellectual Property Office,17/02/2016,T&S UK,IT Directorate,Hrg UK Inh205194845,H57720160223diqoefbmg,541.93,Not Applicable,
Department for Business Innovation and Skills,Intellectual Property Office,04/02/2016,Software Maintenance,IT Directorate,Amazon UK Marketplace,H57720160206ecxckltwi,47.86,Not Applicable,
Department for Business Innovation and Skills,Intellectual Property Office,30/01/2016,Software Maintenance,IT Directorate,Amazon UK Retail,H57720160202evpfpghin,63.99,Not Applicable,
Department for Business Innovation and Skills,Intellectual Property Office,18/02/2016,Perpetual Licences,IT Directorate,Meetingzone Ltd,H57720160220cxzshmxxf,405.92,Not Applicable,
Department for Business Innovation and Skills,Intellectual Property Office,15/02/2016,Fixed Telecoms Equipment,IT Directorate,Www.Zen.Co.Uk,H57720160217csrbesuuh,108.00,Not Applicable,
Department for Business Innovation and Skills,Intellectual Property Office,15/02/2016,Fixed Telecoms Equipment,IT Directorate,Rentals From 02,H57720160217ovxpimlhj,310.28,Not Applicable,
Department for Business Innovation and Skills,Intellectual Property Office,11/02/2016,Fixed Telecoms Equipment,IT Directorate,Rentals From 02,H57720160213xpfhworpq,143.73,Not Applicable,
Department for Business Innovation and Skills,Intellectual Property Office,01/02/2016,Fixed Telecoms Equipment,IT Directorate,Rentals From 02,H57720160203glipfegpc,240.36,Not Applicable,
Department for Business Innovation and Skills,Intellectual Property Office,01/02/2016,Fixed Telecoms Equipment,IT Directorate,Rentals From 02,H57720160203timpaweyh,168.00,Not Applicable,
Department for Business Innovation and Skills,Intellectual Property Office,01/02/2016,Fixed Telecoms Equipment,IT Directorate,Rentals From 02,H57720160203wfoqofhdu,240.48,Not Applicable,
Department for Business Innovation and Skills,Intellectual Property Office,09/02/2016,Perpetual Licences,IT Directorate,J2,H57720160211xmwutaoim,24.19,Not Applicable,
Department for Business Innovation and Skills,Intellectual Property Office,01/02/2016,Perpetual Licences,IT Directorate,Liquid 11 Ltd,H57720160204yzgltusvp,17.95,Not Applicable,
Department for Business Innovation and Skills,Intellectual Property Office,11/02/2016,Network and infrastructure H/W,IT Directorate,Ebuyer (UK) Ltd,H57720160216wxxdthtib,172.90,Not Applicable,
Department for Business Innovation and Skills,Intellectual Property Office,08/02/2016,Network and infrastructure H/W,IT Directorate,Amazon UK Retail,H57720160210smeomfbqz,46.01,Not Applicable,
Department for Business Innovation and Skills,Intellectual Property Office,30/01/2016,Network and infrastructure H/W,IT Directorate,Amazon UK Marketplace,H57720160202dghpenrmn,89.73,Not Applicable,
Department for Business Innovation and Skills,Intellectual Property Office,22/02/2016,Perpetual Licences,IT Directorate,Www.Netsecrets.Co.Uk,H57720160224xesedxofc,420.00,Not Applicable,
Department for Business Innovation and Skills,Intellectual Property Office,30/01/2016,Software Maintenance,IT Directorate,Browserstack.Com,H57720160202wxjeyiicy,172.04,Not Applicable,
Department for Business Innovation and Skills,Intellectual Property Office,02/02/2016,Legal Consultancy,IT Directorate,Asda Superstore 4928,H57720160204mczxhxyqs,3.00,Not Applicable,
Department for Business Innovation and Skills,Intellectual Property Office,25/02/2016,Career Development Services,IT Directorate,Eb Service Design In,H57720160227juyecszud,190.00,Not Applicable,
Department for Business Innovation and Skills,Intellectual Property Office,25/02/2016,Career Development Services,IT Directorate,Eb Service Design In,H57720160227udfsedylk,350.00,Not Applicable,
Department for Business Innovation and Skills,Intellectual Property Office,23/02/2016,Perpetual Licences,IT Directorate,Amazon UK Retail,H57720160225demvvluno,124.98,Not Applicable,
Department for Business Innovation and Skills,Intellectual Property Office,05/02/2016,Career Development Services,IT Directorate,General Assembly,H57720160209krmaqqboh,34.86,Not Applicable,
Department for Business Innovation and Skills,Intellectual Property Office,05/02/2016,T&S O-seas excl EPOQUE,IT Directorate,Aramark/schulich Schoo,H57720160209pbvoxywrr,87.06,Not Applicable,
Department for Business Innovation and Skills,Intellectual Property Office,05/02/2016,T&S O-seas excl EPOQUE,IT Directorate,Aramark/schulich Schoo,H57720160209untcpuqnr,87.06,Not Applicable,
Department for Business Innovation and Skills,Intellectual Property Office,03/02/2016,Perpetual Licences,IT Directorate,Trello,H57720160204chcscnvih,6.01,Not Applicable,
Department for Business Innovation and Skills,Intellectual Property Office,30/01/2016,Perpetual Licences,IT Directorate,Trello,H57720160202kcjagyrcj,6.99,Not Applicable,
Department for Business Innovation and Skills,Intellectual Property Office,11/02/2016,Network and infrastructure H/W,IT Directorate,Amazon UK Retail,H57720160213dwikwglxo,197.89,Not Applicable,
Department for Business Innovation and Skills,Intellectual Property Office,23/02/2016,Entertainment,People Places & Serv Direct,Marksandspencer.Co,H57720160225lsrpqifrl,58.70,Not Applicable,
Department for Business Innovation and Skills,Intellectual Property Office,11/02/2016,Books,Innovation Directorate,Centaur Magazine Subsc,H57720160213jfdclbeor,182.00,Not Applicable,
Department for Business Innovation and Skills,Intellectual Property Office,11/02/2016,Books,Innovation Directorate,Hpsl/cds,H57720160213ptdyrnpmr,227.70,Not Applicable,
Department for Business Innovation and Skills,Intellectual Property Office,10/02/2016,Books,Innovation Directorate,Private Eye,H57720160212fypmivipz,28.00,Not Applicable,
Department for Business Innovation and Skills,Intellectual Property Office,01/02/2016,Career Development Services,Innovation Directorate,Civil Service Learning,H57720160203vfiphqxro,300.00,Not Applicable,
Department for Business Innovation and Skills,Intellectual Property Office,08/02/2016,Books,Innovation Directorate,Economist Subscription,H57720160210fxmgjrlhv,126.00,Not Applicable,
Department for Business Innovation and Skills,Intellectual Property Office,08/02/2016,Books,Innovation Directorate,Economist Subscription,H57720160210wgvvhwerk,126.00,Not Applicable,
Department for Business Innovation and Skills,Intellectual Property Office,04/02/2016,Legal Consultancy,Innovation Directorate,Futurelearncom,H57720160206femgdlkry,35.20,Not Applicable,
Department for Business Innovation and Skills,Intellectual Property Office,12/02/2016,Career Development Services,Innovation Directorate,Ugcs Limited,H57720160216hftxvwlcz,240.00,Not Applicable,
Department for Business Innovation and Skills,Intellectual Property Office,09/02/2016,Career Development Services,Innovation Directorate,Asda Superstore 4928,H57720160211ajwphukmq,51.96,Not Applicable,
Department for Business Innovation and Skills,Intellectual Property Office,24/02/2016,Books,Innovation Directorate,Amazon UK Marketplace,H57720160226gbmhdmmct,125.64,Not Applicable,
Department for Business Innovation and Skills,Intellectual Property Office,23/02/2016,Books,Innovation Directorate,Amazon UK Marketplace,H57720160225xksysrmqw,60.00,Not Applicable,
Department for Business Innovation and Skills,Intellectual Property Office,23/02/2016,T&S UK,Innovation Directorate,Holiday Inn Stratford,H57720160225ldxlycroh,107.50,Not Applicable,
Department for Business Innovation and Skills,Intellectual Property Office,28/01/2016,T&S UK,Innovation Directorate,Hrg UK Inm043966381,H57720160202jnzuvudei,3.07,Not Applicable,
Department for Business Innovation and Skills,Intellectual Property Office,07/02/2016,Advertising Distribution,Innovation Directorate,Twitonomy.Com,H57720160209mtcbgjgjb,13.52,Not Applicable,
Department for Business Innovation and Skills,Intellectual Property Office,01/02/2016,Advertising Distribution,Innovation Directorate,Anchor Exhibitions & E,H57720160203yytvczvik,128.40,Not Applicable,
Department for Business Innovation and Skills,Intellectual Property Office,26/02/2016,Seminars and Confereces,Innovation Directorate,Index Group Shell,H57720160301pwflcedqu,365.60,Not Applicable,
Department for Business Innovation and Skills,Intellectual Property Office,26/02/2016,Seminars and Confereces,Innovation Directorate,Wdt London,H57720160301thtyxnskw,537.96,Not Applicable,
Department for Business Innovation and Skills,Intellectual Property Office,02/02/2016,Career Development Services,Finance Directorate,Www.Cips.Org,H57720160204gvgmoaaak,195.84,Not Applicable,
Department for Business Innovation and Skills,Intellectual Property Office,02/02/2016,Career Development Services,Finance Directorate,Www.Cips.Org,H57720160204jgutyyvbm,195.84,Not Applicable,
Department for Business Innovation and Skills,Intellectual Property Office,02/02/2016,Books,Finance Directorate,Www.Cips.Org,H57720160204qpulcmmdu,167.79,Not Applicable,
Department for Business Innovation and Skills,Intellectual Property Office,19/02/2016,Entertainment,Finance Directorate,Amazon UK Marketplace,H57720160223fouwgqqft,2.99,Not Applicable,
Department for Business Innovation and Skills,Intellectual Property Office,18/02/2016,Entertainment,Finance Directorate,Amazon UK Marketplace,H57720160220nohpxpjau,2.62,Not Applicable,
Department for Business Innovation and Skills,Intellectual Property Office,18/02/2016,Entertainment,Finance Directorate,Amazon UK Marketplace,H57720160220nueyvohrw,2.26,Not Applicable,
Department for Business Innovation and Skills,Intellectual Property Office,18/02/2016,Entertainment,Finance Directorate,Amazon UK Marketplace,H57720160220txlnjipua,14.38,Not Applicable,
Department for Business Innovation and Skills,Intellectual Property Office,18/02/2016,Entertainment,Finance Directorate,Amazon UK Marketplace,H57720160220vdulinjxu,8.09,Not Applicable,
Department for Business Innovation and Skills,Intellectual Property Office,18/02/2016,Entertainment,Finance Directorate,Amazon UK Marketplace,H57720160220xornussrd,3.75,Not Applicable,
Department for Business Innovation and Skills,Intellectual Property Office,24/02/2016,Office Stationery,Finance Directorate,Www.Bhma.Co.Uk,H57720160226tmkudcyhq,77.17,Not Applicable,
Department for Business Innovation and Skills,Intellectual Property Office,24/02/2016,Office Stationery,Finance Directorate,Amazon UK Marketplace,H57720160226tsqkggagg,12.94,Not Applicable,
Department for Business Innovation and Skills,Intellectual Property Office,16/02/2016,Office Stationery,Finance Directorate,Amazon UK Marketplace,H57720160218xxbupkorm,8.25,Not Applicable,
Department for Business Innovation and Skills,Intellectual Property Office,10/02/2016,Office Stationery,Finance Directorate,Www.Bhma.Co.Uk,H57720160212dcxgealwh,141.25,Not Applicable,
Department for Business Innovation and Skills,Intellectual Property Office,23/02/2016,Office Stationery,Finance Directorate,Xma Ltd,H57720160226igdichned,319.92,Not Applicable,
Department for Business Innovation and Skills,Intellectual Property Office,23/02/2016,Office Stationery,Finance Directorate,Xma Ltd,H57720160226itkqkvfuc,272.42,Not Applicable,
Department for Business Innovation and Skills,Intellectual Property Office,24/02/2016,Office Stationery,Finance Directorate,Xma Ltd,H57720160226jpkpjvikl,225.64,Not Applicable,
Department for Business Innovation and Skills,Intellectual Property Office,17/02/2016,Office Stationery,Finance Directorate,Www.Toner-Ink-Cartridg,H57720160219kjtrfoetz,75.60,Not Applicable,
Department for Business Innovation and Skills,Intellectual Property Office,16/02/2016,Office Stationery,Finance Directorate,Xma Ltd,H57720160218egmagioer,112.46,Not Applicable,
Department for Business Innovation and Skills,Intellectual Property Office,11/02/2016,Office Stationery,Finance Directorate,Buyabattery Co Uk,H57720160213seikliknd,12.75,Not Applicable,
Department for Business Innovation and Skills,Intellectual Property Office,08/02/2016,Office Stationery,Finance Directorate,Xma Ltd,H57720160210dlctccbdl,319.92,Not Applicable,
Department for Business Innovation and Skills,Intellectual Property Office,08/02/2016,Office Stationery,Finance Directorate,Xma Ltd,H57720160210nnfpoeled,272.42,Not Applicable,
Department for Business Innovation and Skills,Intellectual Property Office,08/02/2016,Office Stationery,Finance Directorate,Xma Ltd,H57720160210pplffdvxt,319.92,Not Applicable,
Department for Business Innovation and Skills,Intellectual Property Office,08/02/2016,Office Stationery,Finance Directorate,Xma Ltd,H57720160210zfryyxgpr,272.42,Not Applicable,
Department for Business Innovation and Skills,Intellectual Property Office,05/02/2016,Office Stationery,Finance Directorate,Xma Ltd,H57720160209pktvonzoj,140.86,Not Applicable,
Department for Business Innovation and Skills,Intellectual Property Office,11/02/2016,Career Development Services,People Places & Serv Direct,Paypal,H57720160213qfmmvptzy,24.95,Not Applicable,
Department for Business Innovation and Skills,Intellectual Property Office,29/01/2016,Career Development Services,People Places & Serv Direct,Www.Theknowledgeacadem,H57720160202qtfdyjrun,-2465.58,Not Applicable,
Department for Business Innovation and Skills,Intellectual Property Office,01/02/2016,Career Development Services,People Places & Serv Direct,Bls*prezi Inc,H57720160203vmtcvjjoo,8.40,Not Applicable,
Department for Business Innovation and Skills,Intellectual Property Office,10/02/2016,Books,People Places & Serv Direct,British Standards,H57720160212bsczttqbl,380.95,Not Applicable,
Department for Business Innovation and Skills,Intellectual Property Office,24/02/2016,Perpetual Licences,People Places & Serv Direct,Jeffnet,H57720160226oenzusedh,1854.82,Not Applicable,
Department for Business Innovation and Skills,Intellectual Property Office,03/02/2016,Entertainment,People Places & Serv Direct,Asda Superstore 4928,H57720160205mbvlknpel,7.43,Not Applicable,
Department for Business Innovation and Skills,Intellectual Property Office,01/02/2016,Entertainment,People Places & Serv Direct,Tesco Store 2931,H57720160203djyrfhmcw,15.48,Not Applicable,
Department for Business Innovation and Skills,Intellectual Property Office,01/02/2016,Entertainment,People Places & Serv Direct,The Range,H57720160203mbspjoqwm,47.96,Not Applicable,
Department for Business Innovation and Skills,Intellectual Property Office,23/02/2016,Entertainment,People Places & Serv Direct,Sainsburys S/mkts,H57720160225bvmivppbs,11.08,Not Applicable,
Department for Business Innovation and Skills,Intellectual Property Office,08/02/2016,Entertainment,People Places & Serv Direct,Paypal,H57720160210wtqxqrrfn,7.98,Not Applicable,
Department for Business Innovation and Skills,Intellectual Property Office,04/02/2016,Books,People Places & Serv Direct,Pantone Llc Gbp,H57720160206vihnimzbs,261.84,Not Applicable,
Department for Business Innovation and Skills,Intellectual Property Office,19/02/2016,Office Stationery,People Places & Serv Direct,Ao Retail Limited,H57720160223ygoriejho,636.00,Not Applicable,
Department for Business Innovation and Skills,Intellectual Property Office,18/02/2016,Office Stationery,People Places & Serv Direct,Screwfix Direct,H57720160220qkutgeghm,28.98,Not Applicable,
Department for Business Innovation and Skills,Intellectual Property Office,17/02/2016,Office Stationery,People Places & Serv Direct,Applied Products(Wales,H57720160219bnkclldrt,690.00,Not Applicable,
Department for Business Innovation and Skills,Intellectual Property Office,17/02/2016,Office Stationery,People Places & Serv Direct,Argos Ltd,H57720160219cglrdvwqn,99.99,Not Applicable,
Department for Business Innovation and Skills,Intellectual Property Office,17/02/2016,Office Stationery,People Places & Serv Direct,Screwfix Direct,H57720160219cjrxwqfct,126.57,Not Applicable,
Department for Business Innovation and Skills,Intellectual Property Office,16/02/2016,Office Stationery,People Places & Serv Direct,Screwfix Direct,H57720160218fpqudmqzd,71.18,Not Applicable,
Department for Business Innovation and Skills,Intellectual Property Office,12/02/2016,Office Stationery,People Places & Serv Direct,Www.Dartscorner.Co.Uk,H57720160216ebxihuslu,30.00,Not Applicable,
Department for Business Innovation and Skills,Intellectual Property Office,13/02/2016,Office Stationery,People Places & Serv Direct,Screwfix Direct,H57720160216lohflxqgd,46.97,Not Applicable,
Department for Business Innovation and Skills,Intellectual Property Office,10/02/2016,Office Stationery,People Places & Serv Direct,Www.Dartscorner.Co.Uk,H57720160212pppsywyjl,24.30,Not Applicable,
Department for Business Innovation and Skills,Intellectual Property Office,08/02/2016,Office Stationery,People Places & Serv Direct,Www.Johnlewis.Com,H57720160210mnchmbzwt,79.99,Not Applicable,
Department for Business Innovation and Skills,Intellectual Property Office,04/02/2016,Office Stationery,People Places & Serv Direct,W T Laminates,H57720160206grkvfuixt,275.47,Not Applicable,
Department for Business Innovation and Skills,Intellectual Property Office,04/02/2016,Office Stationery,People Places & Serv Direct,Amazon UK Marketplace,H57720160206vwxwhrjjs,33.96,Not Applicable,
Department for Business Innovation and Skills,Intellectual Property Office,01/02/2016,Office Stationery,People Places & Serv Direct,Screwfix Direct,H57720160203wyovibwlm,30.97,Not Applicable,
Department for Business Innovation and Skills,Intellectual Property Office,29/01/2016,Office Stationery,People Places & Serv Direct,Selectamark,H57720160202jyarwbfqe,70.20,Not Applicable,
Department for Business Innovation and Skills,Intellectual Property Office,12/02/2016,Office Stationery,People Places & Serv Direct,Screwfix Direct,H57720160216xhpjwihez,89.99,Not Applicable,
Department for Business Innovation and Skills,Intellectual Property Office,24/02/2016,Office Stationery,People Places & Serv Direct,Rakuten Uk,H57720160301cmxrwposb,76.79,Not Applicable,
Department for Business Innovation and Skills,Intellectual Property Office,25/02/2016,Office Stationery,People Places & Serv Direct,Sig,H57720160227nsluigzyd,425.35,Not Applicable,
Department for Business Innovation and Skills,Intellectual Property Office,24/02/2016,Legal Consultancy,People Places & Serv Direct,Pmoconferencecouk,H57720160226tazmbjoqs,1440.00,Not Applicable,
Department for Business Innovation and Skills,Intellectual Property Office,01/02/2016,Career Development Services,People Places & Serv Direct,Media Training Ltd,H57720160203sveavaerg,414.00,Not Applicable,
Department for Business Innovation and Skills,Intellectual Property Office,18/02/2016, 2 Minute Smile,People Places & Serv Direct,Amazon UK Marketplace,H57720160220cyxjugnzv,2.70,Not Applicable,
Department for Business Innovation and Skills,Intellectual Property Office,08/02/2016,Other,People Places & Serv Direct,Argos Retail Group,H57720160210xnqvvggbi,10.38,Not Applicable,
Department for Business Innovation and Skills,Intellectual Property Office,05/02/2016,Other,People Places & Serv Direct,Paypal,H57720160209dflgaeezx,113.95,Not Applicable,
Department for Business Innovation and Skills,Intellectual Property Office,01/02/2016,Other,People Places & Serv Direct,Multisafepay.Com,H57720160203tqpviulin,-10.92,Not Applicable,
Department for Business Innovation and Skills,Intellectual Property Office,25/02/2016,Career Development Services,People Places & Serv Direct,Www.Computeraidrai,H57720160227ellncbuac,678.00,Not Applicable,
Department for Business Innovation and Skills,Intellectual Property Office,25/02/2016,Career Development Services,People Places & Serv Direct,Www.Computeraidrai,H57720160227igfcehqxa,678.00,Not Applicable,
Department for Business Innovation and Skills,Intellectual Property Office,25/02/2016,Career Development Services,People Places & Serv Direct,Www.Computeraidrai,H57720160227nfxtmohcr,678.00,Not Applicable,
Department for Business Innovation and Skills,Intellectual Property Office,25/02/2016,Career Development Services,People Places & Serv Direct,Www.Computeraidrai,H57720160227zsyqmmcws,678.00,Not Applicable,
Department for Business Innovation and Skills,Intellectual Property Office,24/02/2016,Career Development Services,People Places & Serv Direct,Www.Westminster-Briefi,H57720160226jchjkgmjj,1350.00,Not Applicable,
Department for Business Innovation and Skills,Intellectual Property Office,05/02/2016,Career Development Services,People Places & Serv Direct,Libero Learning,H57720160209qcmnlcmdc,118.80,Not Applicable,
Department for Business Innovation and Skills,Intellectual Property Office,03/02/2016,Career Development Services,People Places & Serv Direct,Int*worth Consulting Ltd,H57720160205bfjosryyp,1607.86,Not Applicable,
Department for Business Innovation and Skills,Intellectual Property Office,26/02/2016,Office Stationery,People Places & Serv Direct,Amazon UK Marketplace,H57720160301itpegetiq,535.00,Not Applicable,
Department for Business Innovation and Skills,Intellectual Property Office,26/02/2016,Office Stationery,People Places & Serv Direct,Amazon UK Marketplace,H57720160301cxfymuibn,60.68,Not Applicable,
Department for Business Innovation and Skills,Intellectual Property Office,25/02/2016,Office Stationery,People Places & Serv Direct,Amazon UK Marketplace,H57720160227liwbsluar,55.37,Not Applicable,
Department for Business Innovation and Skills,Intellectual Property Office,24/02/2016,Office Stationery,People Places & Serv Direct,Amazon UK Marketplace,H57720160226mebjqjfug,19.47,Not Applicable,
Department for Business Innovation and Skills,Intellectual Property Office,23/02/2016,Office Stationery,People Places & Serv Direct,Amazon UK Retail,H57720160225thteoipmh,52.45,Not Applicable,
Department for Business Innovation and Skills,Intellectual Property Office,22/02/2016,Office Stationery,People Places & Serv Direct,Nukey,H57720160224pykwghtiw,8.52,Not Applicable,
Department for Business Innovation and Skills,Intellectual Property Office,18/02/2016,Office Stationery,People Places & Serv Direct,Amazon UK Marketplace,H57720160220delbabbvs,21.99,Not Applicable,
Department for Business Innovation and Skills,Intellectual Property Office,12/02/2016,Office Stationery,People Places & Serv Direct,Amazon UK Marketplace,H57720160216vhplcpyvw,26.60,Not Applicable,
Department for Business Innovation and Skills,Intellectual Property Office,10/02/2016,Office Stationery,People Places & Serv Direct,Healthy Workstations Ltd,H57720160212ewegnuiqe,97.27,Not Applicable,
Department for Business Innovation and Skills,Intellectual Property Office,10/02/2016,Office Stationery,People Places & Serv Direct,South Wales Suppliers,H57720160212kmmiqvmyo,275.40,Not Applicable,
Department for Business Innovation and Skills,Intellectual Property Office,10/02/2016,Office Stationery,People Places & Serv Direct,Healthy Workstations Ltd,H57720160212sxtsiglys,90.98,Not Applicable,
Department for Business Innovation and Skills,Intellectual Property Office,31/01/2016,Office Stationery,People Places & Serv Direct,"Amazon Svcs Europe,sar",H57720160202idagdejhy,149.90,Not Applicable,
Department for Business Innovation and Skills,Intellectual Property Office,31/01/2016,Office Stationery,People Places & Serv Direct,Amazon UK Retail,H57720160202krjguprhr,12.17,Not Applicable,
Department for Business Innovation and Skills,Intellectual Property Office,08/02/2016,Other,People Places & Serv Direct,Sjasuplies,H57720160210rgvbrscyr,126.00,Not Applicable,
Department for Business Innovation and Skills,Intellectual Property Office,01/02/2016,Other,People Places & Serv Direct,Sjasuplies,H57720160203dozxvhwpn,126.00,Not Applicable,
Department for Business Innovation and Skills,Intellectual Property Office,26/02/2016,Office Stationery,People Places & Serv Direct,Www.Eurekadirect.Co.Uk,H57720160301mapdjcxjf,292.98,Not Applicable,
Department for Business Innovation and Skills,Intellectual Property Office,17/02/2016,Other,People Places & Serv Direct,Healthy Workstations Ltd,H57720160219gvflmhdke,222.00,Not Applicable,
Department for Business Innovation and Skills,Intellectual Property Office,17/02/2016,Office Stationery,People Places & Serv Direct,Timpson Ltd,H57720160219jabiskqed,6.00,Not Applicable,
Department for Business Innovation and Skills,Intellectual Property Office,02/02/2016,Office Stationery,People Places & Serv Direct,Hse Books (Mail Order),H57720160204dosbemqdp,20.00,Not Applicable,
Department for Business Innovation and Skills,Intellectual Property Office,01/02/2016,Office Stationery,People Places & Serv Direct,Ese Direct Limited,H57720160203bdduqhrtm,25.80,Not Applicable,
Department for Business Innovation and Skills,Intellectual Property Office,09/02/2016,Minor Works-Goods,People Places & Serv Direct,The Colour Centre,H57720160211uuylbcqsf,998.51,Not Applicable,
Department for Business Innovation and Skills,Intellectual Property Office,04/02/2016,Office Stationery,People Places & Serv Direct,Www.Nisbets.Com,H57720160206psqrdclge,64.75,Not Applicable,
Department for Business Innovation and Skills,Intellectual Property Office,02/02/2016,Office Stationery,People Places & Serv Direct,Newport Locksmiths Ltd,H57720160205ekxerxnls,60.00,Not Applicable,
Department for Business Innovation and Skills,Intellectual Property Office,03/02/2016,Minor Works-Goods,People Places & Serv Direct,Screwfix Direct,H57720160205vfqwegxmk,42.90,Not Applicable,
Department for Business Innovation and Skills,Intellectual Property Office,01/02/2016,Seminars and Confereces,People Places & Serv Direct,Coveritlive Scribbl,H57720160203byocqcvvi,35.67,Not Applicable,
Department for Business Innovation and Skills,Intellectual Property Office,01/02/2016,Office Stationery,People Places & Serv Direct,T C Group Ltd,H57720160203jmzskucsf,159.00,Not Applicable,
Department for Business Innovation and Skills,Intellectual Property Office,09/02/2016,Entertainment,International Policy Directorate,Www.Intecoffice.Co.Uk,H57720160211bnymgmbzr,116.40,Not Applicable,
Department for Business Innovation and Skills,Intellectual Property Office,04/02/2016,T&S UK,Patent Directorate,Amazon UK Marketplace,H57720160206jqjjaoyhj,43.96,Not Applicable,
Department for Business Innovation and Skills,Intellectual Property Office,16/02/2016,Career Development Services,Patent Directorate,Tickets,H57720160218bfmovtgfj,33.25,Not Applicable,
Department for Business Innovation and Skills,Intellectual Property Office,16/02/2016,Career Development Services,Patent Directorate,Eb The Wearable Techn,H57720160218vziujihdf,370.00,Not Applicable,
Department for Business Innovation and Skills,Intellectual Property Office,25/02/2016,Overseas Patent Specifications,Patent Directorate,Support.Atypon.Com,H57720160227hlnsugtfc,18.52,Not Applicable,
Department for Business Innovation and Skills,Intellectual Property Office,04/02/2016,Overseas Patent Specifications,Patent Directorate,Highwire Press,H57720160206nlprdpqdz,7.10,Not Applicable,
Department for Business Innovation and Skills,Intellectual Property Office,04/02/2016,Overseas Patent Specifications,Patent Directorate,Rei,H57720160206woivkdubm,26.80,Not Applicable,
Department for Business Innovation and Skills,Intellectual Property Office,11/02/2016,Overseas Patent Specifications,Patent Directorate,Amazon UK Marketplace,H57720160213bimeuhgmp,2.81,Not Applicable,
Department for Business Innovation and Skills,Intellectual Property Office,10/02/2016,Overseas Patent Specifications,Patent Directorate,Sage Publications,H57720160212pbnbsfohr,28.59,Not Applicable,
Department for Business Innovation and Skills,Intellectual Property Office,25/02/2016,T&S O-seas excl EPOQUE,Projects,Nh Atlanta Brussels,H57720160301rhchzhssp,131.03,Not Applicable,
Department for Business Innovation and Skills,Intellectual Property Office,24/02/2016,Perpetual Licences,Projects,Cloudflare,H57720160227dkvcenwip,162.98,Not Applicable,
Department for Business Innovation and Skills,Intellectual Property Office,12/02/2016,Legal Consultancy,Projects,Www.Monitis.Com,H57720160216agclcohbq,17.15,Not Applicable,
Department for Business Innovation and Skills,Intellectual Property Office,08/02/2016,Legal Consultancy,Projects,Bugherd Pty Ltd,H57720160209mxbkkbpyc,34.86,Not Applicable,
Department for Business Innovation and Skills,Intellectual Property Office,30/01/2016,Career Development Services,Projects,Oracle UK Corporation,H57720160202jmgppcevh,2400.00,Not Applicable,
Department for Business Innovation and Skills,Intellectual Property Office,11/02/2016,T&S O-seas excl EPOQUE,Trade Mark Directorate,Uscustoms Esta Appl Pmt,H57720160213pxetvbrfj,10.02,Not Applicable,
Department for Business Innovation and Skills,Intellectual Property Office,20/02/2016,T&S O-seas excl EPOQUE,Trade Mark Directorate,Www.Purpleparking.Com,H57720160223loypbvzhb,56.69,Not Applicable,
Department for Business Innovation and Skills,Intellectual Property Office,10/02/2016,Software Maintenance,Trade Mark Directorate,The Intellectual Property,H57720160212bymkikjcj,60.00,Not Applicable,
Department for Business Innovation and Skills,Intellectual Property Office,11/02/2016,Accommodation,People Places & Serv Direct,Pro Investments Limited,85073,-18686.08,Not Applicable,
Department for Business Innovation and Skills,Intellectual Property Office,24/02/2016,Miscellaneous Expenses General,People Places & Serv Direct,Celtech Consultancy Ltd,FRA-0004-16-01,600.00,Not Applicable,
Department for Business Innovation and Skills,Intellectual Property Office,15/02/2016,Staff Costs,People Places & Serv Direct,Cardinus Risk Management Ltd,INV-63075-KC93R1,1027.20,Not Applicable,
Department for Business Innovation and Skills,Intellectual Property Office,04/02/2016,Travel & Subsistence,Finance Directorate,Veezu Ltd T/A Dragon Taxis (Newport),5128,71.40,Not Applicable,
Department for Business Innovation and Skills,Intellectual Property Office,03/02/2016,Pay Costs,Finance Directorate,Accountancy Recruitment Wales,1902,1584.00,Not Applicable,
Department for Business Innovation and Skills,Intellectual Property Office,03/02/2016,Pay Costs,Finance Directorate,Accountancy Recruitment Wales,1894,1980.00,Not Applicable,
Department for Business Innovation and Skills,Intellectual Property Office,03/02/2016,Pay Costs,Finance Directorate,Accountancy Recruitment Wales,1941,1980.00,Not Applicable,
Department for Business Innovation and Skills,Intellectual Property Office,11/02/2016,Pay Costs,Finance Directorate,Accountancy Recruitment Wales,1950,1980.00,Not Applicable,
Department for Business Innovation and Skills,Intellectual Property Office,29/02/2016,Travel & Subsistence,Finance Directorate,Veezu Ltd T/A Dragon Taxis (Newport),5223,7.80,Not Applicable,
Department for Business Innovation and Skills,Intellectual Property Office,04/02/2016,Travel & Subsistence,Finance Directorate,Veezu Ltd T/A Dragon Taxis (Newport),5128,15.60,Not Applicable,
Department for Business Innovation and Skills,Intellectual Property Office,08/02/2016,Pay Costs,Finance Directorate,Accountancy Recruitment Wales,1922,566.05,Not Applicable,
Department for Business Innovation and Skills,Intellectual Property Office,03/02/2016,Pay Costs,Finance Directorate,Accountancy Recruitment Wales,1892,642.80,Not Applicable,
Department for Business Innovation and Skills,Intellectual Property Office,03/02/2016,Pay Costs,Finance Directorate,Accountancy Recruitment Wales,1939,666.78,Not Applicable,
Department for Business Innovation and Skills,Intellectual Property Office,04/02/2016,Pay Costs,Finance Directorate,Accountancy Recruitment Wales,1930,676.38,Not Applicable,
Department for Business Innovation and Skills,Intellectual Property Office,04/02/2016,Pay Costs,Finance Directorate,Accountancy Recruitment Wales,1913,709.96,Not Applicable,
Department for Business Innovation and Skills,Intellectual Property Office,12/02/2016,Pay Costs,Finance Directorate,Accountancy Recruitment Wales,1948,709.96,Not Applicable,
Department for Business Innovation and Skills,Intellectual Property Office,25/02/2016,Pay Costs,Finance Directorate,Accountancy Recruitment Wales,1966,719.56,Not Applicable,
Department for Business Innovation and Skills,Intellectual Property Office,17/02/2016,Legal & Hearings,Copyright and Enforcement Directorate,Brick Court Chambers,INVNS317,750.00,Not Applicable,
Department for Business Innovation and Skills,Intellectual Property Office,22/02/2016,Miscellaneous Expenses General,Copyright and Enforcement Directorate,ITSA Ltd,71959,1038.02,Not Applicable,
Department for Business Innovation and Skills,Intellectual Property Office,18/02/2016,Miscellaneous Expenses General,Copyright and Enforcement Directorate,Paul Ozin,155585,2037.50,Not Applicable,
Department for Business Innovation and Skills,Intellectual Property Office,17/02/2016,Supporting UK Business,Copyright and Enforcement Directorate,City of London Police,4164654,787933.66,Not Applicable,
Department for Business Innovation and Skills,Intellectual Property Office,29/02/2016,Travel & Subsistence,People Places & Serv Direct,Veezu Ltd T/A Dragon Taxis (Newport),5223,30.48,Not Applicable,
Department for Business Innovation and Skills,Intellectual Property Office,04/02/2016,Travel & Subsistence,People Places & Serv Direct,Veezu Ltd T/A Dragon Taxis (Newport),5128,39.00,Not Applicable,
Department for Business Innovation and Skills,Intellectual Property Office,11/02/2016,Accommodation,People Places & Serv Direct,Corona Energy,10691304,-5963.64,Not Applicable,
Department for Business Innovation and Skills,Intellectual Property Office,11/02/2016,Accommodation,People Places & Serv Direct,Corona Energy,10659710,500.52,Not Applicable,
Department for Business Innovation and Skills,Intellectual Property Office,16/02/2016,Accommodation,People Places & Serv Direct,Thomas Waste Management Ltd,146210,612.00,Not Applicable,
Department for Business Innovation and Skills,Intellectual Property Office,15/02/2016,Accommodation,People Places & Serv Direct,Kemp Construction Ltd,6143,1749.60,Not Applicable,
Department for Business Innovation and Skills,Intellectual Property Office,01/02/2016,Accommodation,People Places & Serv Direct,Mitie Technical Facilities Management Lt,100-91138654,2071.30,Not Applicable,
Department for Business Innovation and Skills,Intellectual Property Office,02/02/2016,Accommodation,People Places & Serv Direct,Mitie Facilities Services Ltd,100-91140473,2298.91,Not Applicable,
Department for Business Innovation and Skills,Intellectual Property Office,29/02/2016,Accommodation,People Places & Serv Direct,Mitie Facilities Services Ltd,100/91155790,3696.19,Not Applicable,
Department for Business Innovation and Skills,Intellectual Property Office,10/02/2016,Accommodation,People Places & Serv Direct,Magscapes Ltd,INV-2215,6384.91,Not Applicable,
Department for Business Innovation and Skills,Intellectual Property Office,08/02/2016,Accommodation,People Places & Serv Direct,EDF Energy 1 Ltd,1314473,33051.96,Not Applicable,
Department for Business Innovation and Skills,Intellectual Property Office,17/02/2016,Accommodation,People Places & Serv Direct,Department For Business Innovation & Ski,61511006730,34423.68,Not Applicable,
Department for Business Innovation and Skills,Intellectual Property Office,19/02/2016,Accommodation,People Places & Serv Direct,Liftec,NV100589,70178.40,Not Applicable,
Department for Business Innovation and Skills,Intellectual Property Office,23/02/2016,Accommodation,People Places & Serv Direct,Department For Business Innovation & Ski,6.1511E+11,133450.92,Not Applicable,
Department for Business Innovation and Skills,Intellectual Property Office,15/02/2016,Supporting UK Business,Copyright and Enforcement Directorate,Copyright Hub Foundation,TCH0074,25000.00,Not Applicable,
Department for Business Innovation and Skills,Intellectual Property Office,08/02/2016,Supporting UK Business,Copyright and Enforcement Directorate,Ernst & Young LLP,34613152,66000.00,Not Applicable,
Department for Business Innovation and Skills,Intellectual Property Office,04/02/2016,Travel & Subsistence,Copyright and Enforcement Directorate,Veezu Ltd T/A Dragon Taxis (Newport),5128,62.40,Not Applicable,
Department for Business Innovation and Skills,Intellectual Property Office,29/02/2016,Travel & Subsistence,Copyright and Enforcement Directorate,Veezu Ltd T/A Dragon Taxis (Newport),5223,81.00,Not Applicable,
Department for Business Innovation and Skills,Intellectual Property Office,11/02/2016,Staff Costs,Patent Directorate,News UK Commercial,9005599326,1200.00,Not Applicable,
Department for Business Innovation and Skills,Intellectual Property Office,01/02/2016,Travel & Subsistence,Patent Directorate,Personal expenses,ER138930,648.50,Not Applicable,
Department for Business Innovation and Skills,Intellectual Property Office,16/02/2016,Office Machinery,People Places & Serv Direct,Total Print Finishing Services Ltd,38047,510.00,Not Applicable,
Department for Business Innovation and Skills,Intellectual Property Office,16/02/2016,Office Machinery,People Places & Serv Direct,Midshire Business Systems (Northern) Ltd,307329,1557.32,Not Applicable,
Department for Business Innovation and Skills,Intellectual Property Office,25/02/2016,Office Machinery,People Places & Serv Direct,Siemens Financial Services Limited,244-16-0116367,2088.00,Not Applicable,
Department for Business Innovation and Skills,Intellectual Property Office,04/02/2016,Office Machinery,People Places & Serv Direct,Xerox (UK) Ltd,1605211108,2499.60,Not Applicable,
Department for Business Innovation and Skills,Intellectual Property Office,01/02/2016,Staff Costs,People Places & Serv Direct,CERTITEC,12657,2812.80,Not Applicable,
Department for Business Innovation and Skills,Intellectual Property Office,04/02/2016,Information Technology,IT Directorate,Capita Business Services  Ltd,LO10091712,1429.61,Not Applicable,
Department for Business Innovation and Skills,Intellectual Property Office,01/02/2016,Information Technology,IT Directorate,Capita Business Services  Ltd,LO10090287,1725.41,Not Applicable,
Department for Business Innovation and Skills,Intellectual Property Office,22/02/2016,Information Technology,IT Directorate,Capita Business Services  Ltd,LO10095288,2038.82,Not Applicable,
Department for Business Innovation and Skills,Intellectual Property Office,12/02/2016,Information Technology,IT Directorate,LA International Computer Consultants Lt,LA366227,2243.23,Not Applicable,
Department for Business Innovation and Skills,Intellectual Property Office,01/02/2016,Information Technology,IT Directorate,Capita Business Services  Ltd,LO10087365,2517.60,Not Applicable,
Department for Business Innovation and Skills,Intellectual Property Office,22/02/2016,Information Technology,IT Directorate,Capita Business Services  Ltd,LO10095288,2517.60,Not Applicable,
Department for Business Innovation and Skills,Intellectual Property Office,02/02/2016,Information Technology,IT Directorate,LA International Computer Consultants Lt,LA364370,2650.21,Not Applicable,
Department for Business Innovation and Skills,Intellectual Property Office,08/02/2016,Information Technology,IT Directorate,LA International Computer Consultants Lt,LA365378,2676.43,Not Applicable,
Department for Business Innovation and Skills,Intellectual Property Office,01/02/2016,Information Technology,IT Directorate,Capita Business Services  Ltd,LO10087365,2690.88,Not Applicable,
Department for Business Innovation and Skills,Intellectual Property Office,01/02/2016,Information Technology,IT Directorate,Capita Business Services  Ltd,LO10090287,2690.88,Not Applicable,
Department for Business Innovation and Skills,Intellectual Property Office,22/02/2016,Information Technology,IT Directorate,Capita Business Services  Ltd,LO10095288,2690.88,Not Applicable,
Department for Business Innovation and Skills,Intellectual Property Office,22/02/2016,Information Technology,IT Directorate,Capita Business Services  Ltd,LO10095288,2690.88,Not Applicable,
Department for Business Innovation and Skills,Intellectual Property Office,01/02/2016,Information Technology,IT Directorate,Capita Business Services  Ltd,LO10087365,2739.92,Not Applicable,
Department for Business Innovation and Skills,Intellectual Property Office,15/02/2016,Information Technology,IT Directorate,Capita Business Services  Ltd,LO10094154,2753.63,Not Applicable,
Department for Business Innovation and Skills,Intellectual Property Office,22/02/2016,Information Technology,IT Directorate,LA International Computer Consultants Lt,LA367239,2789.38,Not Applicable,
Department for Business Innovation and Skills,Intellectual Property Office,02/02/2016,Information Technology,IT Directorate,LA International Computer Consultants Lt,LA364369,2793.83,Not Applicable,
Department for Business Innovation and Skills,Intellectual Property Office,12/02/2016,Information Technology,IT Directorate,LA International Computer Consultants Lt,LA366228,2810.40,Not Applicable,
Department for Business Innovation and Skills,Intellectual Property Office,22/02/2016,Information Technology,IT Directorate,LA International Computer Consultants Lt,LA367240,2810.40,Not Applicable,
Department for Business Innovation and Skills,Intellectual Property Office,01/02/2016,Information Technology,IT Directorate,Capita Business Services  Ltd,LO10090287,2813.98,Not Applicable,
Department for Business Innovation and Skills,Intellectual Property Office,22/02/2016,Information Technology,IT Directorate,Capita Business Services  Ltd,LO10095288,2813.98,Not Applicable,
Department for Business Innovation and Skills,Intellectual Property Office,01/02/2016,Information Technology,IT Directorate,Capita Business Services  Ltd,LO10090287,2978.83,Not Applicable,
Department for Business Innovation and Skills,Intellectual Property Office,22/02/2016,Information Technology,IT Directorate,Capita Business Services  Ltd,LO10095288,3027.01,Not Applicable,
Department for Business Innovation and Skills,Intellectual Property Office,22/02/2016,Information Technology,IT Directorate,Capita Business Services  Ltd,LO10095288,3035.04,Not Applicable,
Department for Business Innovation and Skills,Intellectual Property Office,04/02/2016,Information Technology,IT Directorate,Capita Business Services  Ltd,LO10091712,3078.54,Not Applicable,
Department for Business Innovation and Skills,Intellectual Property Office,15/02/2016,Information Technology,IT Directorate,Capita Business Services  Ltd,LO10094154,3135.40,Not Applicable,
Department for Business Innovation and Skills,Intellectual Property Office,04/02/2016,Information Technology,IT Directorate,Capita Business Services  Ltd,LO10091712,3869.22,Not Applicable,
Department for Business Innovation and Skills,Intellectual Property Office,15/02/2016,Information Technology,IT Directorate,Capita Business Services  Ltd,LO10094154,5183.47,Not Applicable,
Department for Business Innovation and Skills,Intellectual Property Office,04/02/2016,Information Technology,IT Directorate,Capita Business Services  Ltd,LO10091712,5540.16,Not Applicable,
Department for Business Innovation and Skills,Intellectual Property Office,04/02/2016,Information Technology,IT Directorate,Capita Business Services  Ltd,LO10091712,7726.08,Not Applicable,
Department for Business Innovation and Skills,Intellectual Property Office,04/02/2016,Travel & Subsistence,IT Directorate,Veezu Ltd T/A Dragon Taxis (Newport),5128,7.80,Not Applicable,
Department for Business Innovation and Skills,Intellectual Property Office,16/02/2016,Information Technology,IT Directorate,Open Connections Solutions Ltd,280038,71088.00,Not Applicable,
Department for Business Innovation and Skills,Intellectual Property Office,23/02/2016,Staff Costs,Innovation Directorate,Whitehall & Industry Group,2150790,540.00,Not Applicable,
Department for Business Innovation and Skills,Intellectual Property Office,02/02/2016,Staff Costs,Innovation Directorate,Capita Business Services  Ltd,X93565,840.00,Not Applicable,
Department for Business Innovation and Skills,Intellectual Property Office,22/02/2016,Staff Costs,Innovation Directorate,HM TREASURY,33010,2781.06,Not Applicable,
Department for Business Innovation and Skills,Intellectual Property Office,29/02/2016,Travel & Subsistence,Innovation Directorate,Veezu Ltd T/A Dragon Taxis (Newport),5223,44.40,Not Applicable,
Department for Business Innovation and Skills,Intellectual Property Office,04/02/2016,Travel & Subsistence,Innovation Directorate,Veezu Ltd T/A Dragon Taxis (Newport),5128,54.60,Not Applicable,
Department for Business Innovation and Skills,Intellectual Property Office,15/02/2016,Pay Costs,Copyright and Enforcement Directorate,Police & Crime Commissioner Sussex,1800036918,2517.48,Not Applicable,
Department for Business Innovation and Skills,Intellectual Property Office,04/02/2016,Travel & Subsistence,Copyright and Enforcement Directorate,Veezu Ltd T/A Dragon Taxis (Newport),5128,7.80,Not Applicable,
Department for Business Innovation and Skills,Intellectual Property Office,29/02/2016,Travel & Subsistence,Copyright and Enforcement Directorate,Veezu Ltd T/A Dragon Taxis (Newport),5223,7.80,Not Applicable,
Department for Business Innovation and Skills,Intellectual Property Office,23/02/2016,Misc Expenses Finance,Finance Directorate,G4S Cash Services (UK) Ltd,1904020,549.11,Not Applicable,
Department for Business Innovation and Skills,Intellectual Property Office,03/02/2016,Misc Expenses Finance,Finance Directorate,American Express,9428293948,1986.12,Not Applicable,
Department for Business Innovation and Skills,Intellectual Property Office,01/02/2016,Office Supplies,Finance Directorate,Antalis,5529763,624.00,Not Applicable,
Department for Business Innovation and Skills,Intellectual Property Office,10/02/2016,Office Supplies,Finance Directorate,Antalis,5558055,624.00,Not Applicable,
Department for Business Innovation and Skills,Intellectual Property Office,24/02/2016,Office Supplies,Finance Directorate,Antalis,5594684,624.00,Not Applicable,
Department for Business Innovation and Skills,Intellectual Property Office,23/02/2016,Office Supplies,Finance Directorate,Antalis,5582538,705.60,Not Applicable,
Department for Business Innovation and Skills,Intellectual Property Office,04/02/2016,Office Supplies,Finance Directorate,Banner  Business Supplies Ltd,31245735,1649.04,Not Applicable,
Department for Business Innovation and Skills,Intellectual Property Office,15/02/2016,Office Supplies,Finance Directorate,Antalis,5548750,8458.90,Not Applicable,
Department for Business Innovation and Skills,Intellectual Property Office,04/02/2016,Information Technology,Projects,Trustmarque Solutions Ltd,2239676,5032.44,Not Applicable,
Department for Business Innovation and Skills,Intellectual Property Office,04/02/2016,Information Technology,Projects,Trustmarque Solutions Ltd,2239562,36964.80,Not Applicable,
Department for Business Innovation and Skills,Intellectual Property Office,12/02/2016,Information Technology,Projects,BluePhoenix Solutions UK Ltd T/A MODERN,104160005,47520.00,Not Applicable,
Department for Business Innovation and Skills,Intellectual Property Office,10/02/2016,Information Technology,Projects,BluePhoenix Solutions UK Ltd T/A MODERN,104160004,86100.00,Not Applicable,
Department for Business Innovation and Skills,Intellectual Property Office,24/02/2016,Pay Costs,Finance Directorate,Companies House,S0001619697,9430.05,Not Applicable,
Department for Business Innovation and Skills,Intellectual Property Office,10/02/2016,Pay Costs,Finance Directorate,Companies House,S0001619689,17090.00,Not Applicable,
Department for Business Innovation and Skills,Intellectual Property Office,10/02/2016,Travel & Subsistence,Finance Directorate,Companies House,S0001619689,1126.00,Not Applicable,
Department for Business Innovation and Skills,Intellectual Property Office,26/02/2016,Staff Costs,People Places & Serv Direct,The Clive Davis Partnership Ltd.,CDSC-2431,1140.00,Not Applicable,
Department for Business Innovation and Skills,Intellectual Property Office,10/02/2016,Staff Costs,People Places & Serv Direct,Acorn Recruitment Ltd,APS02817,1378.72,Not Applicable,
Department for Business Innovation and Skills,Intellectual Property Office,10/02/2016,Staff Costs,People Places & Serv Direct,Acorn Recruitment Ltd,APS02816,2518.68,Not Applicable,
Department for Business Innovation and Skills,Intellectual Property Office,04/02/2016,Travel & Subsistence,People Places & Serv Direct,Veezu Ltd T/A Dragon Taxis (Newport),5128,59.40,Not Applicable,
Department for Business Innovation and Skills,Intellectual Property Office,03/02/2016,Staff Costs,Innovation Directorate,Market Research Society,100031839,558.00,Not Applicable,
Department for Business Innovation and Skills,Intellectual Property Office,29/02/2016,Travel & Subsistence,Innovation Directorate,Veezu Ltd T/A Dragon Taxis (Newport),5223,73.20,Not Applicable,
Department for Business Innovation and Skills,Intellectual Property Office,04/02/2016,Travel & Subsistence,Innovation Directorate,Veezu Ltd T/A Dragon Taxis (Newport),5128,121.20,Not Applicable,
Department for Business Innovation and Skills,Intellectual Property Office,24/02/2016,Marketing & Publicity,Innovation Directorate,Aardman Animations Ltd,31475,1539.60,Not Applicable,
Department for Business Innovation and Skills,Intellectual Property Office,23/02/2016,Marketing & Publicity,Innovation Directorate,Aardman Animations Ltd,31659,1539.60,Not Applicable,
Department for Business Innovation and Skills,Intellectual Property Office,01/02/2016,Marketing & Publicity,Innovation Directorate,EDCOMS LTD,12050,19200.00,Not Applicable,
Department for Business Innovation and Skills,Intellectual Property Office,04/02/2016,Marketing & Publicity,Innovation Directorate,EDCOMS LTD,12224,19572.00,Not Applicable,
Department for Business Innovation and Skills,Intellectual Property Office,29/02/2016,Miscellaneous Expenses General,Innovation Directorate,Veezu Ltd T/A Dragon Taxis (Newport),5223,215.76,Not Applicable,
Department for Business Innovation and Skills,Intellectual Property Office,22/02/2016,Miscellaneous Expenses General,Innovation Directorate,European Patent Office,40254025,992.69,Not Applicable,
Department for Business Innovation and Skills,Intellectual Property Office,24/02/2016,Miscellaneous Expenses General,Innovation Directorate,Birmingham Chamber of Commerce,SINV148488,1200.00,Not Applicable,
Department for Business Innovation and Skills,Intellectual Property Office,10/02/2016,Miscellaneous Expenses General,Innovation Directorate,Holiday Inn Express,2016002201,1440.00,Not Applicable,
Department for Business Innovation and Skills,Intellectual Property Office,08/02/2016,Miscellaneous Expenses General,Innovation Directorate,Personal expenses,5313,34524.00,Not Applicable,
Department for Business Innovation and Skills,Intellectual Property Office,23/02/2016,Miscellaneous Expenses General,Innovation Directorate,Office for National Statistics,1031457,47947.20,Not Applicable,
Department for Business Innovation and Skills,Intellectual Property Office,01/02/2016,Supporting UK Business,Innovation Directorate,Red Beetle Films Ltd,34,795.00,Not Applicable,
Department for Business Innovation and Skills,Intellectual Property Office,03/02/2016,Supporting UK Business,Innovation Directorate,IS Media Ltd (t/a People for Research),5389,1190.40,Not Applicable,
Department for Business Innovation and Skills,Intellectual Property Office,04/02/2016,Supporting UK Business,Innovation Directorate,SGS United Kingdom Ltd,WWB1089297,1279.96,Not Applicable,
Department for Business Innovation and Skills,Intellectual Property Office,03/02/2016,Supporting UK Business,Innovation Directorate,K. W. Peter & Co,101409,1849.50,Not Applicable,
Department for Business Innovation and Skills,Intellectual Property Office,01/02/2016,Supporting UK Business,Innovation Directorate,Applied IPI Ltd,35020/0034,2166.66,Not Applicable,
Department for Business Innovation and Skills,Intellectual Property Office,01/02/2016,Supporting UK Business,Innovation Directorate,Stannard & Stannard,433,2166.67,Not Applicable,
Department for Business Innovation and Skills,Intellectual Property Office,01/02/2016,Supporting UK Business,Innovation Directorate,Appleyard Lees,120168,2599.99,Not Applicable,
Department for Business Innovation and Skills,Intellectual Property Office,03/02/2016,Supporting UK Business,Innovation Directorate,IP ASSET  LLP,3742,2600.00,Not Applicable,
Department for Business Innovation and Skills,Intellectual Property Office,18/02/2016,Supporting UK Business,Innovation Directorate,Acumen Business Law,6572,2600.00,Not Applicable,
Department for Business Innovation and Skills,Intellectual Property Office,01/02/2016,Supporting UK Business,Innovation Directorate,Venner Shipley  LLP,274797,2600.00,Not Applicable,
Department for Business Innovation and Skills,Intellectual Property Office,03/02/2016,Supporting UK Business,Innovation Directorate,3volution LLP,3347,2600.00,Not Applicable,
Department for Business Innovation and Skills,Intellectual Property Office,03/02/2016,Supporting UK Business,Innovation Directorate,3volution LLP,3353,2600.00,Not Applicable,
Department for Business Innovation and Skills,Intellectual Property Office,03/02/2016,Supporting UK Business,Innovation Directorate,3volution LLP,3354,2600.00,Not Applicable,
Department for Business Innovation and Skills,Intellectual Property Office,15/02/2016,Supporting UK Business,Innovation Directorate,3volution LLP,3363,2600.00,Not Applicable,
Department for Business Innovation and Skills,Intellectual Property Office,15/02/2016,Supporting UK Business,Innovation Directorate,3volution LLP,3369,2600.00,Not Applicable,
Department for Business Innovation and Skills,Intellectual Property Office,15/02/2016,Supporting UK Business,Innovation Directorate,3volution LLP,3373,2600.00,Not Applicable,
Department for Business Innovation and Skills,Intellectual Property Office,16/02/2016,Supporting UK Business,Innovation Directorate,3volution LLP,3409,2600.00,Not Applicable,
Department for Business Innovation and Skills,Intellectual Property Office,16/02/2016,Supporting UK Business,Innovation Directorate,3volution LLP,3410,2600.00,Not Applicable,
Department for Business Innovation and Skills,Intellectual Property Office,16/02/2016,Supporting UK Business,Innovation Directorate,3volution LLP,3413,2600.00,Not Applicable,
Department for Business Innovation and Skills,Intellectual Property Office,01/02/2016,Supporting UK Business,Innovation Directorate,STEPHENS SCOWN LLP,52458,2600.00,Not Applicable,
Department for Business Innovation and Skills,Intellectual Property Office,01/02/2016,Supporting UK Business,Innovation Directorate,STEPHENS SCOWN LLP,52636,2600.00,Not Applicable,
Department for Business Innovation and Skills,Intellectual Property Office,01/02/2016,Supporting UK Business,Innovation Directorate,STEPHENS SCOWN LLP,52642,2600.00,Not Applicable,
Department for Business Innovation and Skills,Intellectual Property Office,04/02/2016,Supporting UK Business,Innovation Directorate,STEPHENS SCOWN LLP,53223,2600.00,Not Applicable,
Department for Business Innovation and Skills,Intellectual Property Office,03/02/2016,Supporting UK Business,Innovation Directorate,STEPHENS SCOWN LLP,53270,2600.00,Not Applicable,
Department for Business Innovation and Skills,Intellectual Property Office,18/02/2016,Supporting UK Business,Innovation Directorate,STEPHENS SCOWN LLP,53829,2600.00,Not Applicable,
Department for Business Innovation and Skills,Intellectual Property Office,18/02/2016,Supporting UK Business,Innovation Directorate,STEPHENS SCOWN LLP,53832,2600.00,Not Applicable,
Department for Business Innovation and Skills,Intellectual Property Office,29/02/2016,Supporting UK Business,Innovation Directorate,STEPHENS SCOWN LLP,54249,2600.00,Not Applicable,
Department for Business Innovation and Skills,Intellectual Property Office,10/02/2016,Supporting UK Business,Innovation Directorate,SHULMANS LLP,289384,2600.00,Not Applicable,
Department for Business Innovation and Skills,Intellectual Property Office,10/02/2016,Supporting UK Business,Innovation Directorate,SHULMANS LLP,289386,2600.00,Not Applicable,
Department for Business Innovation and Skills,Intellectual Property Office,10/02/2016,Supporting UK Business,Innovation Directorate,SHULMANS LLP,289388,2600.00,Not Applicable,
Department for Business Innovation and Skills,Intellectual Property Office,10/02/2016,Supporting UK Business,Innovation Directorate,SHULMANS LLP,289391,2600.00,Not Applicable,
Department for Business Innovation and Skills,Intellectual Property Office,10/02/2016,Supporting UK Business,Innovation Directorate,SHULMANS LLP,289393,2600.00,Not Applicable,
Department for Business Innovation and Skills,Intellectual Property Office,10/02/2016,Supporting UK Business,Innovation Directorate,SHULMANS LLP,289396,2600.00,Not Applicable,
Department for Business Innovation and Skills,Intellectual Property Office,15/02/2016,Supporting UK Business,Innovation Directorate,Coller IP Management Ltd,8127,2600.00,Not Applicable,
Department for Business Innovation and Skills,Intellectual Property Office,03/02/2016,Supporting UK Business,Innovation Directorate,Innovate Now Ltd,2029,2600.00,Not Applicable,
Department for Business Innovation and Skills,Intellectual Property Office,15/02/2016,Supporting UK Business,Innovation Directorate,Innovate Now Ltd,2043,2600.00,Not Applicable,
Department for Business Innovation and Skills,Intellectual Property Office,16/02/2016,Supporting UK Business,Innovation Directorate,Innovate Now Ltd,2044,2600.00,Not Applicable,
Department for Business Innovation and Skills,Intellectual Property Office,16/02/2016,Supporting UK Business,Innovation Directorate,Innovate Now Ltd,2045,2600.00,Not Applicable,
Department for Business Innovation and Skills,Intellectual Property Office,16/02/2016,Supporting UK Business,Innovation Directorate,Innovate Now Ltd,2046,2600.00,Not Applicable,
Department for Business Innovation and Skills,Intellectual Property Office,16/02/2016,Supporting UK Business,Innovation Directorate,Innovate Now Ltd,2047,2600.00,Not Applicable,
Department for Business Innovation and Skills,Intellectual Property Office,01/02/2016,Supporting UK Business,Innovation Directorate,Ashfords LLP,569406,2600.00,Not Applicable,
Department for Business Innovation and Skills,Intellectual Property Office,01/02/2016,Supporting UK Business,Innovation Directorate,J F Cleveland LLP,157433,2600.00,Not Applicable,
Department for Business Innovation and Skills,Intellectual Property Office,01/02/2016,Supporting UK Business,Innovation Directorate,Digital Remit Ltd,2016011202,2600.00,Not Applicable,
Department for Business Innovation and Skills,Intellectual Property Office,18/02/2016,Supporting UK Business,Innovation Directorate,Digital Remit Ltd,2016021101,2600.00,Not Applicable,
Department for Business Innovation and Skills,Intellectual Property Office,01/02/2016,Supporting UK Business,Innovation Directorate,Be Legal Ltd,INV-201553,2600.00,Not Applicable,
Department for Business Innovation and Skills,Intellectual Property Office,01/02/2016,Supporting UK Business,Innovation Directorate,Particluar Legal Ltd,838,2600.00,Not Applicable,
Department for Business Innovation and Skills,Intellectual Property Office,03/02/2016,Supporting UK Business,Innovation Directorate,HLW KEEBLE HAWSON,78185,2600.00,Not Applicable,
Department for Business Innovation and Skills,Intellectual Property Office,03/02/2016,Supporting UK Business,Innovation Directorate,Albright ip,15627,2600.00,Not Applicable,
Department for Business Innovation and Skills,Intellectual Property Office,15/02/2016,Supporting UK Business,Innovation Directorate,Fortis IP Ltd,580,2600.00,Not Applicable,
Department for Business Innovation and Skills,Intellectual Property Office,01/02/2016,Supporting UK Business,Innovation Directorate,Pioneer IP Ltd,20200,2880.00,Not Applicable,
Department for Business Innovation and Skills,Intellectual Property Office,29/02/2016,Supporting UK Business,Innovation Directorate,Lincoln IP,5456,3000.00,Not Applicable,
Department for Business Innovation and Skills,Intellectual Property Office,29/02/2016,Supporting UK Business,Innovation Directorate,Lincoln IP,5473,3000.00,Not Applicable,
Department for Business Innovation and Skills,Intellectual Property Office,15/02/2016,Supporting UK Business,Innovation Directorate,Lincoln IP,5505,3000.00,Not Applicable,
Department for Business Innovation and Skills,Intellectual Property Office,15/02/2016,Supporting UK Business,Innovation Directorate,Lincoln IP,5507,3000.00,Not Applicable,
Department for Business Innovation and Skills,Intellectual Property Office,15/02/2016,Supporting UK Business,Innovation Directorate,Lincoln IP,5509,3000.00,Not Applicable,
Department for Business Innovation and Skills,Intellectual Property Office,03/02/2016,Supporting UK Business,Innovation Directorate,Marks & Clerk LLP,5100516,3000.00,Not Applicable,
Department for Business Innovation and Skills,Intellectual Property Office,01/02/2016,Supporting UK Business,Innovation Directorate,Marks & Clerk LLP,7066733,3000.00,Not Applicable,
Department for Business Innovation and Skills,Intellectual Property Office,04/02/2016,Supporting UK Business,Innovation Directorate,Marks & Clerk LLP,7067894,3000.00,Not Applicable,
Department for Business Innovation and Skills,Intellectual Property Office,29/02/2016,Supporting UK Business,Innovation Directorate,LAWRIE INTELLECTUAL PROPERTY,107187,3000.00,Not Applicable,
Department for Business Innovation and Skills,Intellectual Property Office,29/02/2016,Supporting UK Business,Innovation Directorate,LAWRIE INTELLECTUAL PROPERTY,107188,3000.00,Not Applicable,
Department for Business Innovation and Skills,Intellectual Property Office,15/02/2016,Supporting UK Business,Innovation Directorate,LAWRIE INTELLECTUAL PROPERTY,107198,3000.00,Not Applicable,
Department for Business Innovation and Skills,Intellectual Property Office,15/02/2016,Supporting UK Business,Innovation Directorate,LAWRIE INTELLECTUAL PROPERTY,107206,3000.00,Not Applicable,
Department for Business Innovation and Skills,Intellectual Property Office,03/02/2016,Supporting UK Business,Innovation Directorate,LAWRIE INTELLECTUAL PROPERTY,107281,3000.00,Not Applicable,
Department for Business Innovation and Skills,Intellectual Property Office,29/02/2016,Supporting UK Business,Innovation Directorate,LAWRIE INTELLECTUAL PROPERTY,107447,3000.00,Not Applicable,
Department for Business Innovation and Skills,Intellectual Property Office,29/02/2016,Supporting UK Business,Innovation Directorate,LAWRIE INTELLECTUAL PROPERTY,107528,3000.00,Not Applicable,
Department for Business Innovation and Skills,Intellectual Property Office,29/02/2016,Supporting UK Business,Innovation Directorate,LAWRIE INTELLECTUAL PROPERTY,G150501.00.01,3000.00,Not Applicable,
Department for Business Innovation and Skills,Intellectual Property Office,16/02/2016,Supporting UK Business,Innovation Directorate,INNGOT LTD,M1602-1,3000.00,Not Applicable,
Department for Business Innovation and Skills,Intellectual Property Office,23/02/2016,Supporting UK Business,Innovation Directorate,INNGOT LTD,M1602/5,3000.00,Not Applicable,
Department for Business Innovation and Skills,Intellectual Property Office,03/02/2016,Supporting UK Business,Innovation Directorate,CAMERON INTELLECTUAL PROPERTY LTD,1654-16,3000.00,Not Applicable,
Department for Business Innovation and Skills,Intellectual Property Office,15/02/2016,Supporting UK Business,Innovation Directorate,CAMERON INTELLECTUAL PROPERTY LTD,1670-16,3000.00,Not Applicable,
Department for Business Innovation and Skills,Intellectual Property Office,03/02/2016,Supporting UK Business,Innovation Directorate,Lean IP,INV2051,3000.00,Not Applicable,
Department for Business Innovation and Skills,Intellectual Property Office,04/02/2016,Supporting UK Business,Innovation Directorate,Lean IP,INV2052,3000.00,Not Applicable,
Department for Business Innovation and Skills,Intellectual Property Office,16/02/2016,Supporting UK Business,Innovation Directorate,Lean IP,INV2054,3000.00,Not Applicable,
Department for Business Innovation and Skills,Intellectual Property Office,18/02/2016,Supporting UK Business,Innovation Directorate,Lean IP,INV2055,3000.00,Not Applicable,
Department for Business Innovation and Skills,Intellectual Property Office,16/02/2016,Supporting UK Business,Innovation Directorate,Thorntons,890096,3000.00,Not Applicable,
Department for Business Innovation and Skills,Intellectual Property Office,18/02/2016,Supporting UK Business,Innovation Directorate,Murgitroyd & Company Ltd,38942E/15,3000.00,Not Applicable,
Department for Business Innovation and Skills,Intellectual Property Office,16/02/2016,Supporting UK Business,Innovation Directorate,Cloch Solicitors,15-0222,3000.00,Not Applicable,
Department for Business Innovation and Skills,Intellectual Property Office,29/02/2016,Supporting UK Business,Innovation Directorate,HARPER MACLEOD LLP,D829927,3000.00,Not Applicable,
Department for Business Innovation and Skills,Intellectual Property Office,16/02/2016,Supporting UK Business,Innovation Directorate,Scintilla,INV-00575,3000.00,Not Applicable,
Department for Business Innovation and Skills,Intellectual Property Office,29/02/2016,Supporting UK Business,Innovation Directorate,Scintilla,INV-00589,3000.00,Not Applicable,
Department for Business Innovation and Skills,Intellectual Property Office,29/02/2016,Supporting UK Business,Innovation Directorate,Scintilla,INV-00590,3000.00,Not Applicable,
Department for Business Innovation and Skills,Intellectual Property Office,15/02/2016,Supporting UK Business,Innovation Directorate,MBM Commercial LLP,10-10702,3000.00,Not Applicable,
Department for Business Innovation and Skills,Intellectual Property Office,15/02/2016,Supporting UK Business,Innovation Directorate,MBM Commercial LLP,10-10707,3000.00,Not Applicable,
Department for Business Innovation and Skills,Intellectual Property Office,01/02/2016,Supporting UK Business,Innovation Directorate,Abel & Imray,446489,3000.00,Not Applicable,
Department for Business Innovation and Skills,Intellectual Property Office,29/02/2016,Supporting UK Business,Innovation Directorate,Abel & Imray,447040,3000.00,Not Applicable,
Department for Business Innovation and Skills,Intellectual Property Office,03/02/2016,Supporting UK Business,Innovation Directorate,TENNANT IP,1369,3000.00,Not Applicable,
Department for Business Innovation and Skills,Intellectual Property Office,03/02/2016,Supporting UK Business,Innovation Directorate,Ellis IP Limited,2546,3000.00,Not Applicable,
Department for Business Innovation and Skills,Intellectual Property Office,16/02/2016,Supporting UK Business,Innovation Directorate,Ellis IP Limited,2551,3000.00,Not Applicable,
Department for Business Innovation and Skills,Intellectual Property Office,15/02/2016,Supporting UK Business,Innovation Directorate,Ipentus Limited,IPO004,3000.00,Not Applicable,
Department for Business Innovation and Skills,Intellectual Property Office,18/02/2016,Supporting UK Business,Innovation Directorate,Valuation Consulting LLP,15100-2,3000.00,Not Applicable,
Department for Business Innovation and Skills,Intellectual Property Office,29/02/2016,Supporting UK Business,Innovation Directorate,Capella IP Ltd,16007,3000.00,Not Applicable,
Department for Business Innovation and Skills,Intellectual Property Office,29/02/2016,Supporting UK Business,Innovation Directorate,Ouzman IP Limited,140-16,3000.00,Not Applicable,
Department for Business Innovation and Skills,Intellectual Property Office,01/02/2016,Supporting UK Business,Innovation Directorate,Video Wales,VW262,14400.00,Not Applicable,
Department for Business Innovation and Skills,Intellectual Property Office,19/02/2016,Supporting UK Business,Innovation Directorate,FOREIGN & COMMONWEALTH OFFICE,1085162,-1033.40,Not Applicable,
Department for Business Innovation and Skills,Intellectual Property Office,10/02/2016,Supporting UK Business,Innovation Directorate,FOREIGN & COMMONWEALTH OFFICE,1084826,950.39,Not Applicable,
Department for Business Innovation and Skills,Intellectual Property Office,19/02/2016,Supporting UK Business,Innovation Directorate,FOREIGN & COMMONWEALTH OFFICE,1085099,6328.30,Not Applicable,
Department for Business Innovation and Skills,Intellectual Property Office,24/02/2016,Supporting UK Business,Innovation Directorate,FOREIGN & COMMONWEALTH OFFICE,1084553,37582.97,Not Applicable,
Department for Business Innovation and Skills,Intellectual Property Office,29/02/2016,Supporting UK Business,Innovation Directorate,FOREIGN & COMMONWEALTH OFFICE,1085340,50308.97,Not Applicable,
Department for Business Innovation and Skills,Intellectual Property Office,22/02/2016,International Payments,International Policy Directorate,WIPO,CNTRW00002559,668628.90,Not Applicable,
Department for Business Innovation and Skills,Intellectual Property Office,23/02/2016,Staff Costs,International Policy Directorate,Whitehall & Industry Group,100942,-540.00,Not Applicable,
Department for Business Innovation and Skills,Intellectual Property Office,03/02/2016,Staff Costs,International Policy Directorate,Whitehall & Industry Group,2150738,540.00,Not Applicable,
Department for Business Innovation and Skills,Intellectual Property Office,04/02/2016,Staff Costs,International Policy Directorate,Language Services Direct Ltd,16455,791.28,Not Applicable,
Department for Business Innovation and Skills,Intellectual Property Office,04/02/2016,Travel & Subsistence,International Policy Directorate,Veezu Ltd T/A Dragon Taxis (Newport),5128,74.40,Not Applicable,
Department for Business Innovation and Skills,Intellectual Property Office,29/02/2016,Travel & Subsistence,International Policy Directorate,Veezu Ltd T/A Dragon Taxis (Newport),5223,77.40,Not Applicable,
Department for Business Innovation and Skills,Intellectual Property Office,01/02/2016,Travel & Subsistence,International Policy Directorate,Personal expenses,ER135156,895.55,Not Applicable,
Department for Business Innovation and Skills,Intellectual Property Office,15/02/2016,Travel & Subsistence,International Policy Directorate,Personal expenses,ER135308,1530.88,Not Applicable,
Department for Business Innovation and Skills,Intellectual Property Office,25/02/2016,Information Technology,IT Directorate,SANDHILL CONSULTANTS LTD,IN4058520,1320.00,Not Applicable,
Department for Business Innovation and Skills,Intellectual Property Office,01/02/2016,Information Technology,IT Directorate,Capita Business Services  Ltd,LO10087365,2110.20,Not Applicable,
Department for Business Innovation and Skills,Intellectual Property Office,22/02/2016,Information Technology,IT Directorate,Capita Business Services  Ltd,LO10095288,3727.34,Not Applicable,
Department for Business Innovation and Skills,Intellectual Property Office,08/02/2016,Information Technology,IT Directorate,LA International Computer Consultants Lt,LA365379,5269.50,Not Applicable,
Department for Business Innovation and Skills,Intellectual Property Office,12/02/2016,Staff Costs,IT Directorate,University of South Wales (Pontypridd),SQICR2015213,-1226.00,Not Applicable,
Department for Business Innovation and Skills,Intellectual Property Office,12/02/2016,Staff Costs,IT Directorate,University of South Wales (Pontypridd),SQINV201514818,2810.00,Not Applicable,
Department for Business Innovation and Skills,Intellectual Property Office,03/02/2016,Information Technology,IT Directorate,BRIDGEWAY SECURITY SOLUTIONS LIMITED,INV-05142,596.81,Not Applicable,
Department for Business Innovation and Skills,Intellectual Property Office,16/02/2016,Information Technology,IT Directorate,SOFTWARE BOX LTD,INV80642,4008.12,Not Applicable,
Department for Business Innovation and Skills,Intellectual Property Office,23/02/2016,Information Technology,IT Directorate,SOFTWARE BOX LTD,INV81051,5572.80,Not Applicable,
Department for Business Innovation and Skills,Intellectual Property Office,25/02/2016,Information Technology,IT Directorate,SANDHILL CONSULTANTS LTD,IN4058520,7800.00,Not Applicable,
Department for Business Innovation and Skills,Intellectual Property Office,02/02/2016,Information Technology,IT Directorate,IPL Information Processing Ltd,38103,8038.49,Not Applicable,
Department for Business Innovation and Skills,Intellectual Property Office,08/02/2016,Information Technology,IT Directorate,Bell Integrated Communications Ltd,SINV-2077,8352.00,Not Applicable,
Department for Business Innovation and Skills,Intellectual Property Office,11/02/2016,Information Technology,IT Directorate,EMC Computer Systems Limited,5100083216,11710.97,Not Applicable,
Department for Business Innovation and Skills,Intellectual Property Office,17/02/2016,Postage & Delivery Costs,IT Directorate,Pluralsight,INV00025568,2073.91,Not Applicable,
Department for Business Innovation and Skills,Intellectual Property Office,29/02/2016,Travel & Subsistence,IT Directorate,Veezu Ltd T/A Dragon Taxis (Newport),5223,7.80,Not Applicable,
Department for Business Innovation and Skills,Intellectual Property Office,23/02/2016,Information Technology,IT Directorate,Atos IT Services UK Limited,5584206201,504.84,Not Applicable,
Department for Business Innovation and Skills,Intellectual Property Office,12/02/2016,Information Technology,IT Directorate,Dell Software International Limited,4700129721,698.20,Not Applicable,
Department for Business Innovation and Skills,Intellectual Property Office,01/02/2016,Information Technology,IT Directorate,Capita Business Services  Ltd,LO10087365,1400.36,Not Applicable,
Department for Business Innovation and Skills,Intellectual Property Office,04/02/2016,Information Technology,IT Directorate,Capita Business Services  Ltd,LO10091712,1517.44,Not Applicable,
Department for Business Innovation and Skills,Intellectual Property Office,15/02/2016,Information Technology,IT Directorate,Bytes Software Services Ltd,436227,1714.14,Not Applicable,
Department for Business Innovation and Skills,Intellectual Property Office,08/02/2016,Information Technology,IT Directorate,LA International Computer Consultants Lt,LA365376,2194.68,Not Applicable,
Department for Business Innovation and Skills,Intellectual Property Office,01/02/2016,Information Technology,IT Directorate,LA International Computer Consultants Lt,LA363897,2202.52,Not Applicable,
Department for Business Innovation and Skills,Intellectual Property Office,25/02/2016,Information Technology,IT Directorate,LA International Computer Consultants Lt,LA367237,2214.26,Not Applicable,
Department for Business Innovation and Skills,Intellectual Property Office,12/02/2016,Information Technology,IT Directorate,LA International Computer Consultants Lt,LA366224,2215.38,Not Applicable,
Department for Business Innovation and Skills,Intellectual Property Office,22/02/2016,Information Technology,IT Directorate,Capita Business Services  Ltd,LO10095288,2223.10,Not Applicable,
Department for Business Innovation and Skills,Intellectual Property Office,04/02/2016,Information Technology,IT Directorate,Capita Business Services  Ltd,LO10091712,2302.02,Not Applicable,
Department for Business Innovation and Skills,Intellectual Property Office,22/02/2016,Information Technology,IT Directorate,Capita Business Services  Ltd,LO10095288,2367.79,Not Applicable,
Department for Business Innovation and Skills,Intellectual Property Office,01/02/2016,Information Technology,IT Directorate,Capita Business Services  Ltd,LO10090287,2433.56,Not Applicable,
Department for Business Innovation and Skills,Intellectual Property Office,01/02/2016,Information Technology,IT Directorate,Capita Business Services  Ltd,LO10090287,2467.31,Not Applicable,
Department for Business Innovation and Skills,Intellectual Property Office,04/02/2016,Information Technology,IT Directorate,Capita Business Services  Ltd,LO10091712,2517.32,Not Applicable,
Department for Business Innovation and Skills,Intellectual Property Office,22/02/2016,Information Technology,IT Directorate,Capita Business Services  Ltd,LO10095288,2570.66,Not Applicable,
Department for Business Innovation and Skills,Intellectual Property Office,15/02/2016,Information Technology,IT Directorate,Capita Business Services  Ltd,LO10094154,2607.17,Not Applicable,
Department for Business Innovation and Skills,Intellectual Property Office,01/02/2016,Information Technology,IT Directorate,Capita Business Services  Ltd,LO10090287,2677.63,Not Applicable,
Department for Business Innovation and Skills,Intellectual Property Office,22/02/2016,Information Technology,IT Directorate,Capita Business Services  Ltd,LO10095288,2681.16,Not Applicable,
Department for Business Innovation and Skills,Intellectual Property Office,22/02/2016,Information Technology,IT Directorate,Capita Business Services  Ltd,LO10095288,2688.20,Not Applicable,
Department for Business Innovation and Skills,Intellectual Property Office,04/02/2016,Information Technology,IT Directorate,Capita Business Services  Ltd,LO10091712,2889.02,Not Applicable,
Department for Business Innovation and Skills,Intellectual Property Office,15/02/2016,Information Technology,IT Directorate,Capita Business Services  Ltd,LO10094154,2905.62,Not Applicable,
Department for Business Innovation and Skills,Intellectual Property Office,04/02/2016,Information Technology,IT Directorate,Capita Business Services  Ltd,LO10091712,2944.67,Not Applicable,
Department for Business Innovation and Skills,Intellectual Property Office,22/02/2016,Information Technology,IT Directorate,Capita Business Services  Ltd,LO10095288,2975.92,Not Applicable,
Department for Business Innovation and Skills,Intellectual Property Office,01/02/2016,Information Technology,IT Directorate,Capita Business Services  Ltd,LO10087365,3085.27,Not Applicable,
Department for Business Innovation and Skills,Intellectual Property Office,01/02/2016,Information Technology,IT Directorate,Capita Business Services  Ltd,LO10090287,3124.32,Not Applicable,
Department for Business Innovation and Skills,Intellectual Property Office,01/02/2016,Information Technology,IT Directorate,LA International Computer Consultants Lt,LA363899,3146.88,Not Applicable,
Department for Business Innovation and Skills,Intellectual Property Office,17/02/2016,Information Technology,IT Directorate,Verisign,520003113,3698.75,Not Applicable,
Department for Business Innovation and Skills,Intellectual Property Office,10/02/2016,Information Technology,IT Directorate,Computacenter (UK) ltd,3880746571,4044.60,Not Applicable,
Department for Business Innovation and Skills,Intellectual Property Office,15/02/2016,Information Technology,IT Directorate,Capita Business Services  Ltd,LO10094154,4216.39,Not Applicable,
Department for Business Innovation and Skills,Intellectual Property Office,29/02/2016,Information Technology,IT Directorate,Techland,SIN019405,4808.81,Not Applicable,
Department for Business Innovation and Skills,Intellectual Property Office,12/02/2016,Information Technology,IT Directorate,LA International Computer Consultants Lt,LA366226,6293.76,Not Applicable,
Department for Business Innovation and Skills,Intellectual Property Office,18/02/2016,Information Technology,IT Directorate,Open Connections Solutions Ltd,280024,7874.40,Not Applicable,
Department for Business Innovation and Skills,Intellectual Property Office,23/02/2016,Information Technology,IT Directorate,NDL Software Ltd,12365,17124.00,Not Applicable,
Department for Business Innovation and Skills,Intellectual Property Office,29/02/2016,Information Technology,IT Directorate,PerkinElmer Informatics Inc,INV80081877,19830.00,Not Applicable,
Department for Business Innovation and Skills,Intellectual Property Office,04/02/2016,Information Technology,IT Directorate,Experian Ltd,HEX67000561843,22695.71,Not Applicable,
Department for Business Innovation and Skills,Intellectual Property Office,19/02/2016,Information Technology,IT Directorate,Trustmarque Solutions Ltd,2240708,46314.00,Not Applicable,
Department for Business Innovation and Skills,Intellectual Property Office,22/02/2016,Staff Costs,IT Directorate,Open Connections Solutions Ltd,280034,2073.60,Not Applicable,
Department for Business Innovation and Skills,Intellectual Property Office,01/02/2016,Staff Costs,IT Directorate,Stratum Worldwide,INV12767,2382.00,Not Applicable,
Department for Business Innovation and Skills,Intellectual Property Office,12/02/2016,Telecoms,IT Directorate,Virgin Media,409092201-04FEB,502.46,Not Applicable,
Department for Business Innovation and Skills,Intellectual Property Office,22/02/2016,Telecoms,IT Directorate,Talk Talk Business,14706876,541.48,Not Applicable,
Department for Business Innovation and Skills,Intellectual Property Office,08/02/2016,Telecoms,IT Directorate,Virgin Media,917218-069,587.84,Not Applicable,
Department for Business Innovation and Skills,Intellectual Property Office,03/02/2016,Telecoms,IT Directorate,THREE,AAK67156203,863.40,Not Applicable,
Department for Business Innovation and Skills,Intellectual Property Office,25/02/2016,Telecoms,IT Directorate,VODAFONE LIMITED,UK10-022016-2678,3322.08,Not Applicable,
Department for Business Innovation and Skills,Intellectual Property Office,25/02/2016,Telecoms,IT Directorate,VODAFONE LIMITED,UK10/012016/8840,3322.08,Not Applicable,
Department for Business Innovation and Skills,Intellectual Property Office,11/02/2016,Telecoms,IT Directorate,British  Telecom,BMSID5718-03FEB,3462.60,Not Applicable,
Department for Business Innovation and Skills,Intellectual Property Office,10/02/2016,Telecoms,IT Directorate,British  Telecom,Q016N&,4204.36,Not Applicable,
Department for Business Innovation and Skills,Intellectual Property Office,24/02/2016,Telecoms,IT Directorate,Vodafone Corporate Ltd,79267358,5240.31,Not Applicable,
Department for Business Innovation and Skills,Intellectual Property Office,11/02/2016,Telecoms,IT Directorate,ZEN INTERNET LIMITED,19967474,5286.05,Not Applicable,
Department for Business Innovation and Skills,Intellectual Property Office,23/02/2016,Telecoms,IT Directorate,EE Ltd,1226932390,6723.97,Not Applicable,
Department for Business Innovation and Skills,Intellectual Property Office,01/02/2016,Telecoms,IT Directorate,Vodafone Corporate Ltd,78905774,6924.79,Not Applicable,
Department for Business Innovation and Skills,Intellectual Property Office,24/02/2016,Telecoms,IT Directorate,British  Telecom,VP02239170M17001,8647.80,Not Applicable,
Department for Business Innovation and Skills,Intellectual Property Office,03/02/2016,Travel & Subsistence,IT Directorate,Personal expenses,ER135235,660.00,Not Applicable,
Department for Business Innovation and Skills,Intellectual Property Office,03/02/2016,Travel & Subsistence,IT Directorate,Personal expenses,ER135233,660.00,Not Applicable,
Department for Business Innovation and Skills,Intellectual Property Office,15/02/2016,Travel & Subsistence,IT Directorate,Personal expenses,ER135309,725.00,Not Applicable,
Department for Business Innovation and Skills,Intellectual Property Office,03/02/2016,Travel & Subsistence,IT Directorate,Personal expenses,ER135210,844.50,Not Applicable,
Department for Business Innovation and Skills,Intellectual Property Office,01/02/2016,Information Technology,IT Directorate,Capita Business Services  Ltd,LO10087365,1344.89,Not Applicable,
Department for Business Innovation and Skills,Intellectual Property Office,12/02/2016,Information Technology,IT Directorate,LA International Computer Consultants Lt,LA366225,1852.96,Not Applicable,
Department for Business Innovation and Skills,Intellectual Property Office,08/02/2016,Information Technology,IT Directorate,LA International Computer Consultants Lt,LA365377,2015.56,Not Applicable,
Department for Business Innovation and Skills,Intellectual Property Office,08/02/2016,Information Technology,IT Directorate,LA International Computer Consultants Lt,LA365380,2674.09,Not Applicable,
Department for Business Innovation and Skills,Intellectual Property Office,22/02/2016,Information Technology,IT Directorate,Capita Business Services  Ltd,LO10095288,2858.38,Not Applicable,
Department for Business Innovation and Skills,Intellectual Property Office,01/02/2016,Information Technology,IT Directorate,Capita Business Services  Ltd,LO10087365,2970.80,Not Applicable,
Department for Business Innovation and Skills,Intellectual Property Office,22/02/2016,Information Technology,IT Directorate,Capita Business Services  Ltd,LO10095288,2970.80,Not Applicable,
Department for Business Innovation and Skills,Intellectual Property Office,22/02/2016,Information Technology,IT Directorate,Capita Business Services  Ltd,LO10095288,2970.80,Not Applicable,
Department for Business Innovation and Skills,Intellectual Property Office,01/02/2016,Information Technology,IT Directorate,Capita Business Services  Ltd,LO10087365,2980.19,Not Applicable,
Department for Business Innovation and Skills,Intellectual Property Office,22/02/2016,Information Technology,IT Directorate,Capita Business Services  Ltd,LO10095288,3201.68,Not Applicable,
Department for Business Innovation and Skills,Intellectual Property Office,04/02/2016,Information Technology,IT Directorate,Capita Business Services  Ltd,LO10091712,3331.49,Not Applicable,
Department for Business Innovation and Skills,Intellectual Property Office,22/02/2016,Information Technology,IT Directorate,Capita Business Services  Ltd,LO10095288,3374.75,Not Applicable,
Department for Business Innovation and Skills,Intellectual Property Office,04/02/2016,Information Technology,IT Directorate,Capita Business Services  Ltd,LO10091712,3420.13,Not Applicable,
Department for Business Innovation and Skills,Intellectual Property Office,22/02/2016,Information Technology,IT Directorate,Capita Business Services  Ltd,LO10095288,3420.13,Not Applicable,
Department for Business Innovation and Skills,Intellectual Property Office,04/02/2016,Information Technology,IT Directorate,Capita Business Services  Ltd,LO10091712,3452.56,Not Applicable,
Department for Business Innovation and Skills,Intellectual Property Office,15/02/2016,Information Technology,IT Directorate,Capita Business Services  Ltd,LO10094154,3722.88,Not Applicable,
Department for Business Innovation and Skills,Intellectual Property Office,04/02/2016,Information Technology,IT Directorate,Capita Business Services  Ltd,LO10091712,3792.96,Not Applicable,
Department for Business Innovation and Skills,Intellectual Property Office,22/02/2016,Information Technology,IT Directorate,Capita Business Services  Ltd,LO10095288,3792.96,Not Applicable,
Department for Business Innovation and Skills,Intellectual Property Office,01/02/2016,Information Technology,IT Directorate,LA International Computer Consultants Lt,LA363898,6488.62,Not Applicable,
Department for Business Innovation and Skills,Intellectual Property Office,01/02/2016,Information Technology,IT Directorate,Capita Business Services  Ltd,LO10087365,6662.96,Not Applicable,
Department for Business Innovation and Skills,Intellectual Property Office,04/02/2016,Information Technology,IT Directorate,Capita Business Services  Ltd,LO10091712,6671.72,Not Applicable,
Department for Business Innovation and Skills,Intellectual Property Office,04/02/2016,Information Technology,IT Directorate,Capita Business Services  Ltd,LO10091712,6865.48,Not Applicable,
Department for Business Innovation and Skills,Intellectual Property Office,22/02/2016,Information Technology,IT Directorate,Capita Business Services  Ltd,LO10095288,7058.74,Not Applicable,
Department for Business Innovation and Skills,Intellectual Property Office,22/02/2016,Information Technology,IT Directorate,Capita Business Services  Ltd,LO10095288,7472.02,Not Applicable,
Department for Business Innovation and Skills,Intellectual Property Office,01/02/2016,Information Technology,IT Directorate,Capita Business Services  Ltd,LO10087365,7888.03,Not Applicable,
Department for Business Innovation and Skills,Intellectual Property Office,15/02/2016,Information Technology,IT Directorate,Capita Business Services  Ltd,LO10094154,9539.21,Not Applicable,
Department for Business Innovation and Skills,Intellectual Property Office,01/02/2016,Information Technology,IT Directorate,Capita Business Services  Ltd,LO10090287,16546.42,Not Applicable,
Department for Business Innovation and Skills,Intellectual Property Office,01/02/2016,Information Technology,IT Directorate,Capita Business Services  Ltd,LO10090287,17454.33,Not Applicable,
Department for Business Innovation and Skills,Intellectual Property Office,04/02/2016,Information Technology,IT Directorate,Capita Business Services  Ltd,LO10091712,18127.74,Not Applicable,
Department for Business Innovation and Skills,Intellectual Property Office,15/02/2016,Information Technology,IT Directorate,Capita Business Services  Ltd,LO10094154,21357.90,Not Applicable,
Department for Business Innovation and Skills,Intellectual Property Office,01/02/2016,Miscellaneous Expenses General,People Places & Serv Direct,Open Connections Solutions Ltd,280015,1036.80,Not Applicable,
Department for Business Innovation and Skills,Intellectual Property Office,08/02/2016,Accommodation,People Places & Serv Direct,EDF Energy 1 Ltd,1320336,1371.61,Not Applicable,
Department for Business Innovation and Skills,Intellectual Property Office,11/02/2016,Accommodation,People Places & Serv Direct,Corona Energy,10734629,3286.43,Not Applicable,
Department for Business Innovation and Skills,Intellectual Property Office,11/02/2016,Accommodation,People Places & Serv Direct,Corona Energy,10815471,3692.11,Not Applicable,
Department for Business Innovation and Skills,Intellectual Property Office,11/02/2016,Accommodation,People Places & Serv Direct,Pro Investments Limited,85114,10079.75,Not Applicable,
Department for Business Innovation and Skills,Intellectual Property Office,17/02/2016,Accommodation,People Places & Serv Direct,Department For Business Innovation & Ski,61511006730,14956.45,Not Applicable,
Department for Business Innovation and Skills,Intellectual Property Office,11/02/2016,Accommodation,People Places & Serv Direct,Pro Investments Limited,84857,18686.08,Not Applicable,
Department for Business Innovation and Skills,Intellectual Property Office,25/02/2016,Marketing & Publicity,Innovation Directorate,Yorkshire Business Market,BM16-009,529.20,Not Applicable,
Department for Business Innovation and Skills,Intellectual Property Office,29/02/2016,Marketing & Publicity,Innovation Directorate,Glisser Ltd,GLSR10058,576.00,Not Applicable,
Department for Business Innovation and Skills,Intellectual Property Office,01/02/2016,Marketing & Publicity,Innovation Directorate,Solicitors Group,65365,625.50,Not Applicable,
Department for Business Innovation and Skills,Intellectual Property Office,17/02/2016,Marketing & Publicity,Innovation Directorate,Solicitors Group,65598,625.50,Not Applicable,
Department for Business Innovation and Skills,Intellectual Property Office,22/02/2016,Marketing & Publicity,Innovation Directorate,Upper Street Events,56663,655.20,Not Applicable,
Department for Business Innovation and Skills,Intellectual Property Office,29/02/2016,Marketing & Publicity,Innovation Directorate,Little Fish Event Management Ltd,306,720.00,Not Applicable,
Department for Business Innovation and Skills,Intellectual Property Office,23/02/2016,Marketing & Publicity,Innovation Directorate,DAN ANTHONY PRESENTATIONS LTD,138,800.00,Not Applicable,
Department for Business Innovation and Skills,Intellectual Property Office,04/02/2016,Marketing & Publicity,Innovation Directorate,British Promotional Merchandise Associat,32163,840.00,Not Applicable,
Department for Business Innovation and Skills,Intellectual Property Office,22/02/2016,Marketing & Publicity,Innovation Directorate,Introbiz UK Ltd,6712,900.00,Not Applicable,
Department for Business Innovation and Skills,Intellectual Property Office,04/02/2016,Marketing & Publicity,Innovation Directorate,Memo Events Ltd,186066,900.00,Not Applicable,
Department for Business Innovation and Skills,Intellectual Property Office,02/02/2016,Marketing & Publicity,Innovation Directorate,Mooncas Ltd,INV-0215,1020.30,Not Applicable,
Department for Business Innovation and Skills,Intellectual Property Office,29/02/2016,Marketing & Publicity,Innovation Directorate,MFV NSE Limited,TFS17167,2400.00,Not Applicable,
Department for Business Innovation and Skills,Intellectual Property Office,01/02/2016,Marketing & Publicity,Innovation Directorate,Red Beetle Films Ltd,37,8000.00,Not Applicable,
Department for Business Innovation and Skills,Intellectual Property Office,04/02/2016,Travel & Subsistence,Innovation Directorate,Veezu Ltd T/A Dragon Taxis (Newport),5128,14.16,Not Applicable,
Department for Business Innovation and Skills,Intellectual Property Office,29/02/2016,Travel & Subsistence,Innovation Directorate,Veezu Ltd T/A Dragon Taxis (Newport),5223,31.20,Not Applicable,
Department for Business Innovation and Skills,Intellectual Property Office,03/02/2016,Travel & Subsistence,Innovation Directorate,Personal expenses,ER135215,523.44,Not Applicable,
Department for Business Innovation and Skills,Intellectual Property Office,23/02/2016,Travel & Subsistence,Innovation Directorate,Personal expenses,ER135396,881.41,Not Applicable,
Department for Business Innovation and Skills,Intellectual Property Office,10/02/2016,Miscellaneous Expenses General,Patent Directorate,National Autistic Society,ASW2220310,540.00,Not Applicable,
Department for Business Innovation and Skills,Intellectual Property Office,10/02/2016,Miscellaneous Expenses General,Patent Directorate,National Autistic Society,PRP2209031,597.60,Not Applicable,
Department for Business Innovation and Skills,Intellectual Property Office,01/02/2016,Staff Costs,Patent Directorate,National Autistic Society,PRP1221110,1176.00,Not Applicable,
Department for Business Innovation and Skills,Intellectual Property Office,02/02/2016,Staff Costs,Patent Directorate,Cardiff University,1133012,2825.00,Not Applicable,
Department for Business Innovation and Skills,Intellectual Property Office,17/02/2016,Information Technology,Patent Directorate,STN,9340291490,11327.45,Not Applicable,
Department for Business Innovation and Skills,Intellectual Property Office,16/02/2016,Legal & Hearings,Patent Directorate,Marten Walsh Cherer Ltd,90609,1227.84,Not Applicable,
Department for Business Innovation and Skills,Intellectual Property Office,25/02/2016,Legal & Hearings,Patent Directorate,Government Legal Department,425686,3004.92,Not Applicable,
Department for Business Innovation and Skills,Intellectual Property Office,17/02/2016,Legal & Hearings,Patent Directorate,Government Legal Department,425586,3339.25,Not Applicable,
Department for Business Innovation and Skills,Intellectual Property Office,17/02/2016,Legal & Hearings,Patent Directorate,Government Legal Department,425842,7266.00,Not Applicable,
Department for Business Innovation and Skills,Intellectual Property Office,24/02/2016,Miscellaneous Expenses General,Patent Directorate,Ministry of Justice (MoJ),10/RL110/303,42857.13,Not Applicable,
Department for Business Innovation and Skills,Intellectual Property Office,01/02/2016,Office Machinery,Patent Directorate,Xerox Finance,96999007,3543.70,Not Applicable,
Department for Business Innovation and Skills,Intellectual Property Office,03/02/2016,Office Supplies,Patent Directorate,British Library,139765367,3848.75,Not Applicable,
Department for Business Innovation and Skills,Intellectual Property Office,17/02/2016,Printing and Binding,Patent Directorate,European Patent Office,40253402,27714.46,Not Applicable,
Department for Business Innovation and Skills,Intellectual Property Office,29/02/2016,Staff Costs,Patent Directorate,University of Southampton,44178083,654.00,Not Applicable,
Department for Business Innovation and Skills,Intellectual Property Office,08/02/2016,Staff Costs,Patent Directorate,University of Birmingham,200-0122753,660.00,Not Applicable,
Department for Business Innovation and Skills,Intellectual Property Office,08/02/2016,Staff Costs,Patent Directorate,WISE Campaign,652,780.00,Not Applicable,
Department for Business Innovation and Skills,Intellectual Property Office,29/02/2016,Staff Costs,Patent Directorate,University of Bristol,SUPP1050786,876.00,Not Applicable,
Department for Business Innovation and Skills,Intellectual Property Office,02/02/2016,Staff Costs,Patent Directorate,Monster Worldwide Ltd,100230145,1188.00,Not Applicable,
Department for Business Innovation and Skills,Intellectual Property Office,01/02/2016,Staff Costs,Patent Directorate,WikiJob Ltd,INV-1567,1545.00,Not Applicable,
Department for Business Innovation and Skills,Intellectual Property Office,01/02/2016,Staff Costs,Patent Directorate,Totaljobs Group Ltd,80652392,1914.00,Not Applicable,
Department for Business Innovation and Skills,Intellectual Property Office,03/02/2016,Pay Costs,Finance Directorate,Accountancy Recruitment Wales,1893,585.24,Not Applicable,
Department for Business Innovation and Skills,Intellectual Property Office,04/02/2016,Pay Costs,Finance Directorate,Accountancy Recruitment Wales,1931,604.43,Not Applicable,
Department for Business Innovation and Skills,Intellectual Property Office,04/02/2016,Pay Costs,Finance Directorate,Accountancy Recruitment Wales,1923,657.19,Not Applicable,
Department for Business Innovation and Skills,Intellectual Property Office,12/02/2016,Pay Costs,Finance Directorate,Accountancy Recruitment Wales,1949,666.78,Not Applicable,
Department for Business Innovation and Skills,Intellectual Property Office,17/02/2016,Pay Costs,Finance Directorate,Accountancy Recruitment Wales,1958,705.16,Not Applicable,
Department for Business Innovation and Skills,Intellectual Property Office,08/02/2016,Pay Costs,Finance Directorate,Companies House,S0001619688,11578.52,Not Applicable,
Department for Business Innovation and Skills,Intellectual Property Office,29/02/2016,Travel & Subsistence,Patent Directorate,Veezu Ltd T/A Dragon Taxis (Newport),5223,34.20,Not Applicable,
Department for Business Innovation and Skills,Intellectual Property Office,26/02/2016,Office Supplies,Patent Directorate,Thomson Reuters (Professional) Ltd,801970029,1855.00,Not Applicable,
Department for Business Innovation and Skills,Intellectual Property Office,04/02/2016,Pay Costs,Patent Directorate,Brook Street (UK) Ltd,30537616,319.68,Not Applicable,
Department for Business Innovation and Skills,Intellectual Property Office,22/02/2016,Pay Costs,Patent Directorate,Brook Street (UK) Ltd,30606415,319.68,Not Applicable,
Department for Business Innovation and Skills,Intellectual Property Office,22/02/2016,Pay Costs,Patent Directorate,Brook Street (UK) Ltd,30606415,408.60,Not Applicable,
Department for Business Innovation and Skills,Intellectual Property Office,01/02/2016,Pay Costs,Patent Directorate,Brook Street (UK) Ltd,30575287,419.14,Not Applicable,
Department for Business Innovation and Skills,Intellectual Property Office,12/02/2016,Pay Costs,Patent Directorate,Brook Street (UK) Ltd,30595874,419.14,Not Applicable,
Department for Business Innovation and Skills,Intellectual Property Office,12/02/2016,Pay Costs,Patent Directorate,Brook Street (UK) Ltd,30595874,469.88,Not Applicable,
Department for Business Innovation and Skills,Intellectual Property Office,01/02/2016,Pay Costs,Patent Directorate,Brook Street (UK) Ltd,30575287,510.74,Not Applicable,
Department for Business Innovation and Skills,Intellectual Property Office,08/02/2016,Pay Costs,Patent Directorate,Brook Street (UK) Ltd,30585626,510.74,Not Applicable,
Department for Business Innovation and Skills,Intellectual Property Office,29/02/2016,Pay Costs,Patent Directorate,Brook Street (UK) Ltd,30617455,510.74,Not Applicable,
Department for Business Innovation and Skills,Intellectual Property Office,08/02/2016,Pay Costs,Patent Directorate,Brook Street (UK) Ltd,30585626,525.70,Not Applicable,
Department for Business Innovation and Skills,Intellectual Property Office,29/02/2016,Pay Costs,Patent Directorate,Brook Street (UK) Ltd,30617455,525.70,Not Applicable,
Department for Business Innovation and Skills,Intellectual Property Office,01/02/2016,Travel & Subsistence,Patent Directorate,Personal expenses,ER135129,591.03,Not Applicable,
Department for Business Innovation and Skills,Intellectual Property Office,03/02/2016,Travel & Subsistence,Patent Directorate,Personal expenses,ER135130,770.58,Not Applicable,
Department for Business Innovation and Skills,Intellectual Property Office,08/02/2016,Pay Costs,Patent Directorate,British Standards Institution,94449526-1000,3236.40,Not Applicable,
Department for Business Innovation and Skills,Intellectual Property Office,01/02/2016,Accommodation,People Places & Serv Direct,Senator International Ltd,S01288107,1526.67,Not Applicable,
Department for Business Innovation and Skills,Intellectual Property Office,15/02/2016,Accommodation,People Places & Serv Direct,Senator International Ltd,S01286558,3226.94,Not Applicable,
Department for Business Innovation and Skills,Intellectual Property Office,22/02/2016,Information Technology,People Places & Serv Direct,Ergo Computing,SIN1602EC01841,1677.80,Not Applicable,
Department for Business Innovation and Skills,Intellectual Property Office,17/02/2016,Miscellaneous Expenses General,People Places & Serv Direct,Sian Kimber,53278,635.21,Not Applicable,
Department for Business Innovation and Skills,Intellectual Property Office,12/02/2016,Miscellaneous Expenses General,People Places & Serv Direct,On Your Bike,33286,675.00,Not Applicable,
Department for Business Innovation and Skills,Intellectual Property Office,08/02/2016,Miscellaneous Expenses General,People Places & Serv Direct,Employers Network for Equality & Inclusi,23225,16200.00,Not Applicable,
Department for Business Innovation and Skills,Intellectual Property Office,12/02/2016,Miscellaneous Expenses General,People Places & Serv Direct,UK Shared Business Services Ltd,SBS-12720,42515.90,Not Applicable,
Department for Business Innovation and Skills,Intellectual Property Office,18/02/2016,Miscellaneous Expenses General,People Places & Serv Direct,UK Shared Business Services Ltd,SBS-12789,42515.90,Not Applicable,
Department for Business Innovation and Skills,Intellectual Property Office,11/02/2016,Postage & Delivery Costs,People Places & Serv Direct,Parcelforce Worldwide,9051553046,610.41,Not Applicable,
Department for Business Innovation and Skills,Intellectual Property Office,29/02/2016,Postage & Delivery Costs,People Places & Serv Direct,Royal Mail,9051649323,1511.78,Not Applicable,
Department for Business Innovation and Skills,Intellectual Property Office,01/02/2016,Postage & Delivery Costs,People Places & Serv Direct,Royal Mail,9051471963,1512.79,Not Applicable,
Department for Business Innovation and Skills,Intellectual Property Office,15/02/2016,Postage & Delivery Costs,People Places & Serv Direct,Royal Mail,9051562701,1750.08,Not Applicable,
Department for Business Innovation and Skills,Intellectual Property Office,12/02/2016,Postage & Delivery Costs,People Places & Serv Direct,DX Network Services Ltd,80909298,1999.99,Not Applicable,
Department for Business Innovation and Skills,Intellectual Property Office,08/02/2016,Postage & Delivery Costs,People Places & Serv Direct,CitySprint (UK) Ltd,1606340,3099.53,Not Applicable,
Department for Business Innovation and Skills,Intellectual Property Office,08/02/2016,Postage & Delivery Costs,People Places & Serv Direct,DHL International (UK) Ltd,BRS9220783,5289.72,Not Applicable,
Department for Business Innovation and Skills,Intellectual Property Office,29/02/2016,Postage & Delivery Costs,People Places & Serv Direct,Neopost Ltd,NE9000335-24FEB,10000.00,Not Applicable,
Department for Business Innovation and Skills,Intellectual Property Office,04/02/2016,Staff Costs,People Places & Serv Direct,J Alty,53258,680.42,Not Applicable,
Department for Business Innovation and Skills,Intellectual Property Office,29/02/2016,Staff Costs,People Places & Serv Direct,Bridgeman Training,IPO001,1461.80,Not Applicable,
Department for Business Innovation and Skills,Intellectual Property Office,24/02/2016,Staff Costs,People Places & Serv Direct,Talentpraxis Group Ltd,29,2832.00,Not Applicable,
Department for Business Innovation and Skills,Intellectual Property Office,01/02/2016,Staff Costs,People Places & Serv Direct,RADA Enterprise,14571,3000.00,Not Applicable,
Department for Business Innovation and Skills,Intellectual Property Office,17/02/2016,Staff Costs,People Places & Serv Direct,Capita Business Services  Ltd,X95203,4524.60,Not Applicable,
Department for Business Innovation and Skills,Intellectual Property Office,16/02/2016,Staff Costs,People Places & Serv Direct,GovNet Communications,96507,5400.00,Not Applicable,
Department for Business Innovation and Skills,Intellectual Property Office,24/02/2016,Staff Costs,People Places & Serv Direct,Knowledge Academy,SO1095749,6472.80,Not Applicable,
Department for Business Innovation and Skills,Intellectual Property Office,11/02/2016,Staff Costs,People Places & Serv Direct,P&MM Ltd,503005,6754.49,Not Applicable,
Department for Business Innovation and Skills,Intellectual Property Office,24/02/2016,Staff Costs,People Places & Serv Direct,Knowledge Academy,SO1095748,7188.00,Not Applicable,
Department for Business Innovation and Skills,Intellectual Property Office,02/02/2016,Staff Costs,People Places & Serv Direct,Whitehall & Industry Group,2150788,7200.00,Not Applicable,
Department for Business Innovation and Skills,Intellectual Property Office,11/02/2016,Staff Costs,People Places & Serv Direct,P&MM Ltd,1025104,9169.48,Not Applicable,
Department for Business Innovation and Skills,Intellectual Property Office,29/02/2016,Travel & Subsistence,People Places & Serv Direct,Veezu Ltd T/A Dragon Taxis (Newport),5223,7.80,Not Applicable,
Department for Business Innovation and Skills,Intellectual Property Office,01/02/2016,Staff Costs,Finance Directorate,Thomas Telford Ltd,26466,3240.00,Not Applicable,
Department for Business Innovation and Skills,Intellectual Property Office,01/02/2016,Pay Costs,Finance Directorate,Brook Street (UK) Ltd,30575287,354.50,Not Applicable,
Department for Business Innovation and Skills,Intellectual Property Office,08/02/2016,Pay Costs,Finance Directorate,Brook Street (UK) Ltd,30585626,460.75,Not Applicable,
Department for Business Innovation and Skills,Intellectual Property Office,08/02/2016,Pay Costs,Finance Directorate,Brook Street (UK) Ltd,30585626,468.70,Not Applicable,
Department for Business Innovation and Skills,Intellectual Property Office,08/02/2016,Pay Costs,Finance Directorate,Brook Street (UK) Ltd,30585626,472.68,Not Applicable,
Department for Business Innovation and Skills,Intellectual Property Office,22/02/2016,Pay Costs,Finance Directorate,Brook Street (UK) Ltd,30606415,476.64,Not Applicable,
Department for Business Innovation and Skills,Intellectual Property Office,01/02/2016,Pay Costs,Finance Directorate,Brook Street (UK) Ltd,30575287,540.19,Not Applicable,
Department for Business Innovation and Skills,Intellectual Property Office,01/02/2016,Pay Costs,Finance Directorate,Brook Street (UK) Ltd,30575287,582.97,Not Applicable,
Department for Business Innovation and Skills,Intellectual Property Office,08/02/2016,Pay Costs,Finance Directorate,Brook Street (UK) Ltd,30585626,582.97,Not Applicable,
Department for Business Innovation and Skills,Intellectual Property Office,12/02/2016,Pay Costs,Finance Directorate,Brook Street (UK) Ltd,30595874,582.97,Not Applicable,
Department for Business Innovation and Skills,Intellectual Property Office,22/02/2016,Pay Costs,Finance Directorate,Brook Street (UK) Ltd,30606415,582.97,Not Applicable,
Department for Business Innovation and Skills,Intellectual Property Office,01/02/2016,Pay Costs,Finance Directorate,Brook Street (UK) Ltd,30575287,587.86,Not Applicable,
Department for Business Innovation and Skills,Intellectual Property Office,29/02/2016,Pay Costs,Finance Directorate,Brook Street (UK) Ltd,30617455,587.86,Not Applicable,
Department for Business Innovation and Skills,Intellectual Property Office,22/02/2016,Pay Costs,Finance Directorate,Brook Street (UK) Ltd,30606415,878.80,Not Applicable,
Department for Business Innovation and Skills,Intellectual Property Office,29/02/2016,Pay Costs,Finance Directorate,Brook Street (UK) Ltd,30617455,1060.54,Not Applicable,
Department for Business Innovation and Skills,Intellectual Property Office,12/02/2016,Pay Costs,Finance Directorate,Brook Street (UK) Ltd,30595874,1175.71,Not Applicable,
Department for Business Innovation and Skills,Intellectual Property Office,04/02/2016,Pay Costs,Finance Directorate,Brook Street (UK) Ltd,30537616,1685.08,Not Applicable,
Department for Business Innovation and Skills,Intellectual Property Office,04/02/2016,Miscellaneous Expenses General,Patent Directorate,Iain Maclean,53257,701.80,Not Applicable,
Department for Business Innovation and Skills,Intellectual Property Office,25/02/2016,Legal & Hearings,Trade Mark Directorate,Government Legal Department,425686,6609.70,Not Applicable,
Department for Business Innovation and Skills,Intellectual Property Office,23/02/2016,Miscellaneous Expenses General,Trade Mark Directorate,FCO Services,6054310,1575.00,Not Applicable,
Department for Business Innovation and Skills,Intellectual Property Office,24/02/2016,Miscellaneous Expenses General,Trade Mark Directorate,Eversheds Solicitors LLP,91449808,3236.40,Not Applicable,
Department for Business Innovation and Skills,Intellectual Property Office,24/02/2016,Miscellaneous Expenses General,Trade Mark Directorate,Eversheds Solicitors LLP,91458768,3980.72,Not Applicable,
Department for Business Innovation and Skills,Intellectual Property Office,08/02/2016,Miscellaneous Expenses General,Trade Mark Directorate,Tremorfa Property Ltd t/a St Mellons Hot,1809,4158.28,Not Applicable,
Department for Business Innovation and Skills,Intellectual Property Office,24/02/2016,Miscellaneous Expenses General,Trade Mark Directorate,Eversheds Solicitors LLP,91444213,7520.75,Not Applicable,
Department for Business Innovation and Skills,Intellectual Property Office,29/02/2016,Supporting UK Business,Trade Mark Directorate,Veezu Ltd T/A Dragon Taxis (Newport),5223,9.00,Not Applicable,
Department for Business Innovation and Skills,Intellectual Property Office,03/02/2016,Supporting UK Business,Trade Mark Directorate,Onixcia Joseph,53256,800.00,Not Applicable,
Department for Business Innovation and Skills,Intellectual Property Office,03/02/2016,Supporting UK Business,Trade Mark Directorate,Donnell H Dixon,53255,800.00,Not Applicable,
Department for Business Innovation and Skills,Intellectual Property Office,24/02/2016,Supporting UK Business,Trade Mark Directorate,JIPO,53292,800.00,Not Applicable,
Department for Business Innovation and Skills,Intellectual Property Office,15/02/2016,Supporting UK Business,Trade Mark Directorate,Holiday Inn Express Cardiff Bay,168992,13794.00,Not Applicable,
Department for Business Innovation and Skills,Intellectual Property Office,12/02/2016,Miscellaneous Expenses General,Trade Mark Directorate,British Standards Institution,94450072/1000,5394.00,Not Applicable,
Department for Business Innovation and Skills,Intellectual Property Office,04/02/2016,Pay Costs,Trade Mark Directorate,Brook Street (UK) Ltd,30537616,430.20,Not Applicable,
Department for Business Innovation and Skills,Intellectual Property Office,04/02/2016,Travel & Subsistence,Trade Mark Directorate,Veezu Ltd T/A Dragon Taxis (Newport),5128,201.60,Not Applicable,
Department for Business Innovation and Skills,Intellectual Property Office,23/02/2016,Travel & Subsistence,Trade Mark Directorate,Personal expenses,ER135103,522.00,Not Applicable,
Department for Business Innovation and Skills,Intellectual Property Office,10/02/2016,Travel & Subsistence,Trade Mark Directorate,Personal expenses,ER135230,546.59,Not Applicable,
Department for Business Innovation and Skills,Intellectual Property Office,29/02/2016,Travel & Subsistence,Trade Mark Directorate,Veezu Ltd T/A Dragon Taxis (Newport),5223,38.40,Not Applicable,
Department for Business Innovation and Skills,Intellectual Property Office,01/02/2016,Pay Costs,Trade Mark Directorate,Brook Street (UK) Ltd,30575287,444.54,Not Applicable,
Department for Business Innovation and Skills,Intellectual Property Office,12/02/2016,Pay Costs,Trade Mark Directorate,Brook Street (UK) Ltd,30595874,473.22,Not Applicable,
Department for Business Innovation and Skills,Intellectual Property Office,29/02/2016,Pay Costs,Trade Mark Directorate,Brook Street (UK) Ltd,30617455,494.72,Not Applicable,
Department for Business Innovation and Skills,Intellectual Property Office,22/02/2016,Pay Costs,Trade Mark Directorate,Brook Street (UK) Ltd,30606415,519.82,Not Applicable,
Department for Business Innovation and Skills,Intellectual Property Office,08/02/2016,Pay Costs,Trade Mark Directorate,Brook Street (UK) Ltd,30585626,548.50,Not Applicable,
Department for Business Innovation and Skills,Intellectual Property Office,29/02/2016,Staff Costs,Trade Mark Directorate,Whitehall & Industry Group,2150860,540.00,Not Applicable,
Department for Business Innovation and Skills,Intellectual Property Office,29/02/2016,Travel & Subsistence,Trade Mark Directorate,Veezu Ltd T/A Dragon Taxis (Newport),5223,7.80,Not Applicable,
Department for Business Innovation and Skills,Intellectual Property Office,16/02/2016,Legal & Hearings,Trade Mark Directorate,Marten Walsh Cherer Ltd,91113,2773.15,Not Applicable,
Department for Business Innovation and Skills,Intellectual Property Office,04/02/2016,Information Technology,Projects,Loadbalancer.org Limited,2311,11988.00,Not Applicable,
Department for Business Innovation and Skills,Intellectual Property Office,10/02/2016,Accommodation,Projects,Willmott Dixon Holdings Limited,82748,50088.25,Not Applicable,
Department for Business Innovation and Skills,Intellectual Property Office,12/02/2016,Information Technology,Projects,Miggle Ltd,MIG-IPO-001-007,1107.00,Not Applicable,
Department for Business Innovation and Skills,Intellectual Property Office,04/02/2016,Information Technology,Projects,Capita Business Services  Ltd,LO10091712,2163.08,Not Applicable,
Department for Business Innovation and Skills,Intellectual Property Office,04/02/2016,Information Technology,Projects,Capita Business Services  Ltd,LO10091712,3139.10,Not Applicable,
Department for Business Innovation and Skills,Intellectual Property Office,03/02/2016,Information Technology,Projects,T-SYSTEMS LIMITED,9430422671,7159.09,Not Applicable,
Department for Business Innovation and Skills,Intellectual Property Office,04/02/2016,Information Technology,Projects,Capita Business Services  Ltd,LO10091712,9417.30,Not Applicable,
Department for Business Innovation and Skills,Intellectual Property Office,16/02/2016,Information Technology,Projects,Miggle Ltd,MIG/IPO/001/008,11122.50,Not Applicable,
Department for Business Innovation and Skills,Intellectual Property Office,25/02/2016,Legal & Hearings,Projects,Eversheds Solicitors LLP,91431447,8078.44,Not Applicable,
Department for Business Innovation and Skills,Intellectual Property Office,10/02/2016,Miscellaneous Expenses General,Projects,Robin Jacob,53269,1824.00,Not Applicable,
Department for Business Innovation and Skills,Intellectual Property Office,11/02/2016,Miscellaneous Expenses General,Projects,Pick Everard,33644,5266.84,Not Applicable,
Department for Business Innovation and Skills,Intellectual Property Office,08/02/2016,Miscellaneous Expenses General,Projects,Pick Everard,32720,6053.71,Not Applicable,
Department for Business Innovation and Skills,Intellectual Property Office,10/02/2016,Miscellaneous Expenses General,Projects,Personal expenses,82780,89070.52,Not Applicable,
Department for Business Innovation and Skills,Intellectual Property Office,29/02/2016,Travel & Subsistence,Projects,Veezu Ltd T/A Dragon Taxis (Newport),5223,30.60,Not Applicable,
Department for Business Innovation and Skills,Intellectual Property Office,04/02/2016,Travel & Subsistence,Projects,Veezu Ltd T/A Dragon Taxis (Newport),5128,50.40,Not Applicable,
Department for Business Innovation and Skills,Intellectual Property Office,17/02/2016,Travel & Subsistence,Projects,Personal expenses,ER135254,1740.31,Not Applicable,
Department for Business Innovation and Skills,Intellectual Property Office,25/02/2016,Accommodation,Projects,Newport Locksmiths,28022,1325.16,Not Applicable,
Department for Business Innovation and Skills,Intellectual Property Office,22/02/2016,Accommodation,Projects,Senator International Ltd,S01293609,14956.07,Not Applicable,
Department for Business Innovation and Skills,Intellectual Property Office,01/02/2016,Accommodation,Projects,Wagstaff Interiors Group,I108314,273014.57,Not Applicable,
Department for Business Innovation and Skills,Intellectual Property Office,24/02/2016,Miscellaneous Expenses General,Projects,EC Harris LLP,75138256,22301.70,Not Applicable,
Department for Business Innovation and Skills,Intellectual Property Office,01/03/2016,Accommodation,People Places & Serv Direct,Mitie Facilities Services Ltd,100-91155729,1915.76,Not Applicable,
Department for Business Innovation and Skills,Intellectual Property Office,01/03/2016,Travel & Subsistence,Copyright and Enforcement Directorate,HRG UK,689157613,-3475.54,Not Applicable,
Department for Business Innovation and Skills,Intellectual Property Office,01/03/2016,Staff Costs,People Places & Serv Direct,Lightwear Ltd t/a Revolution,49695,600.00,Not Applicable,
Department for Business Innovation and Skills,Intellectual Property Office,01/03/2016,Information Technology,Patent Directorate,Capita Business Services  Ltd,LO10096639,2283.27,Not Applicable,
Department for Business Innovation and Skills,Intellectual Property Office,01/03/2016,Information Technology,Patent Directorate,Capita Business Services  Ltd,LO10096639,2098.00,Not Applicable,
Department for Business Innovation and Skills,Intellectual Property Office,01/03/2016,Information Technology,Patent Directorate,Capita Business Services  Ltd,LO10096639,2242.40,Not Applicable,
Department for Business Innovation and Skills,Intellectual Property Office,01/03/2016,Office Supplies,Finance Directorate,Print On Solutions Ltd (North West),142320,2135.40,Not Applicable,
Department for Business Innovation and Skills,Intellectual Property Office,01/03/2016,Office Supplies,Finance Directorate,Antalis,5614161,520.00,Not Applicable,
Department for Business Innovation and Skills,Intellectual Property Office,01/03/2016,Office Supplies,Finance Directorate,Antalis,5614162,699.68,Not Applicable,
Department for Business Innovation and Skills,Intellectual Property Office,01/03/2016,Travel & Subsistence,International Policy Directorate,Personal expenses,ER135477,1271.44,Not Applicable,
Department for Business Innovation and Skills,Intellectual Property Office,01/03/2016,Travel & Subsistence,International Policy Directorate,HRG UK,689156437,-1584.94,Not Applicable,
Department for Business Innovation and Skills,Intellectual Property Office,01/03/2016,Information Technology,IT Directorate,Capita Business Services  Ltd,LO10096639,3146.99,Not Applicable,
Department for Business Innovation and Skills,Intellectual Property Office,01/03/2016,Information Technology,IT Directorate,Capita Business Services  Ltd,LO10096639,2027.97,Not Applicable,
Department for Business Innovation and Skills,Intellectual Property Office,01/03/2016,Information Technology,IT Directorate,Capita Business Services  Ltd,LO10096639,2125.55,Not Applicable,
Department for Business Innovation and Skills,Intellectual Property Office,01/03/2016,Information Technology,IT Directorate,Capita Business Services  Ltd,LO10096639,4646.67,Not Applicable,
Department for Business Innovation and Skills,Intellectual Property Office,01/03/2016,Travel & Subsistence,IT Directorate,HRG UK,43850823,3485.28,Not Applicable,
Department for Business Innovation and Skills,Intellectual Property Office,01/03/2016,Travel & Subsistence,IT Directorate,HRG UK,43857345,3485.28,Not Applicable,
Department for Business Innovation and Skills,Intellectual Property Office,01/03/2016,Information Technology,IT Directorate,Capita Business Services  Ltd,LO10096639,10633.13,Not Applicable,
Department for Business Innovation and Skills,Intellectual Property Office,01/03/2016,Information Technology,IT Directorate,Capita Business Services  Ltd,LO10096639,10832.17,Not Applicable,
Department for Business Innovation and Skills,Intellectual Property Office,01/03/2016,Travel & Subsistence,Innovation Directorate,Personal expenses,ER135456,684.03,Not Applicable,
Department for Business Innovation and Skills,Intellectual Property Office,01/03/2016,Staff Costs,Patent Directorate,IOP Publishing Ltd,8054739,1350.00,Not Applicable,
Department for Business Innovation and Skills,Intellectual Property Office,01/03/2016,Staff Costs,People Places & Serv Direct,Capita Business Services  Ltd,X96997,2300.00,Not Applicable,
Department for Business Innovation and Skills,Intellectual Property Office,01/03/2016,Staff Costs,People Places & Serv Direct,Training Bytesize Ltd,3486,980.00,Not Applicable,
Department for Business Innovation and Skills,Intellectual Property Office,01/03/2016,Travel & Subsistence,International Policy Directorate,Personal expenses,ER135463,970.60,Not Applicable,
Department for Business Innovation and Skills,Intellectual Property Office,02/03/2016,Accommodation,People Places & Serv Direct,HFX Ltd,25762,5569.03,Not Applicable,
Department for Business Innovation and Skills,Intellectual Property Office,02/03/2016,Miscellaneous Expenses General,Innovation Directorate,Pukka Films Ltd,PF5818,6915.00,Not Applicable,
Department for Business Innovation and Skills,Intellectual Property Office,02/03/2016,Travel & Subsistence,People Places & Serv Direct,Personal expenses,ER135473,531.93,Not Applicable,
Department for Business Innovation and Skills,Intellectual Property Office,02/03/2016,Miscellaneous Expenses General,People Places & Serv Direct,Reed Business Information,DSINV00107462,3700.00,Not Applicable,
Department for Business Innovation and Skills,Intellectual Property Office,02/03/2016,Miscellaneous Expenses General,People Places & Serv Direct,Business in the Community,SIN050444,4000.00,Not Applicable,
Department for Business Innovation and Skills,Intellectual Property Office,02/03/2016,Miscellaneous Expenses General,International Policy Directorate,Robin Jacob,53299,1929.82,Not Applicable,
Department for Business Innovation and Skills,Intellectual Property Office,03/03/2016,Pay Costs,Finance Directorate,Accountancy Recruitment Wales,1975,471.71,Not Applicable,
Department for Business Innovation and Skills,Intellectual Property Office,03/03/2016,Office Machinery,People Places & Serv Direct,Xerox Finance,97007739,28536.44,Not Applicable,
Department for Business Innovation and Skills,Intellectual Property Office,03/03/2016,Information Technology,Patent Directorate,Capita Business Services  Ltd,LO10097756,2283.27,Not Applicable,
Department for Business Innovation and Skills,Intellectual Property Office,03/03/2016,Information Technology,Patent Directorate,Capita Business Services  Ltd,LO10097756,2098.00,Not Applicable,
Department for Business Innovation and Skills,Intellectual Property Office,03/03/2016,Staff Costs,Finance Directorate,University of South Wales (Pontypridd),SQINV201516764,520.00,Not Applicable,
Department for Business Innovation and Skills,Intellectual Property Office,03/03/2016,Miscellaneous Expenses General,Innovation Directorate,Centre Island Birmingham Ltd,INT1703,1704.00,Not Applicable,
Department for Business Innovation and Skills,Intellectual Property Office,03/03/2016,Information Technology,IT Directorate,Capita Business Services  Ltd,LO10097756,3048.90,Not Applicable,
Department for Business Innovation and Skills,Intellectual Property Office,03/03/2016,Information Technology,IT Directorate,Capita Business Services  Ltd,LO10097756,2427.86,Not Applicable,
Department for Business Innovation and Skills,Intellectual Property Office,03/03/2016,Information Technology,IT Directorate,Capita Business Services  Ltd,LO10097756,2175.58,Not Applicable,
Department for Business Innovation and Skills,Intellectual Property Office,03/03/2016,Information Technology,IT Directorate,Fujitsu Services Ltd,221887,130413.00,Not Applicable,
Department for Business Innovation and Skills,Intellectual Property Office,03/03/2016,Information Technology,IT Directorate,Fujitsu Services Ltd,221888,44122.00,Not Applicable,
Department for Business Innovation and Skills,Intellectual Property Office,03/03/2016,Information Technology,IT Directorate,Capita Business Services  Ltd,LO10097756,5552.47,Not Applicable,
Department for Business Innovation and Skills,Intellectual Property Office,03/03/2016,Information Technology,IT Directorate,Capita Business Services  Ltd,LO10097756,8330.47,Not Applicable,
Department for Business Innovation and Skills,Intellectual Property Office,03/03/2016,Information Technology,IT Directorate,Capita Business Services  Ltd,LO10097756,2668.07,Not Applicable,
Department for Business Innovation and Skills,Intellectual Property Office,03/03/2016,Accommodation,People Places & Serv Direct,Dwr Cymru Cyf,6056500190,603.59,Not Applicable,
Department for Business Innovation and Skills,Intellectual Property Office,03/03/2016,Marketing & Publicity,Innovation Directorate,Revolution Events Ltd,16631KV16,657.60,Not Applicable,
Department for Business Innovation and Skills,Intellectual Property Office,03/03/2016,Marketing & Publicity,Innovation Directorate,New Start Exhibitions Limited,NSSC16161,2000.00,Not Applicable,
Department for Business Innovation and Skills,Intellectual Property Office,03/03/2016,Pay Costs,Finance Directorate,Accountancy Recruitment Wales,1976,591.63,Not Applicable,
Department for Business Innovation and Skills,Intellectual Property Office,04/03/2016,Pay Costs,Finance Directorate,Accountancy Recruitment Wales,1915,1650.00,Not Applicable,
Department for Business Innovation and Skills,Intellectual Property Office,04/03/2016,Pay Costs,Finance Directorate,Accountancy Recruitment Wales,1924,1650.00,Not Applicable,
Department for Business Innovation and Skills,Intellectual Property Office,04/03/2016,Accommodation,People Places & Serv Direct,Department For Business Innovation & Ski,6.1511E+11,40673.54,Not Applicable,
Department for Business Innovation and Skills,Intellectual Property Office,04/03/2016,Accommodation,People Places & Serv Direct,Department For Business Innovation & Ski,6.1511E+11,9380.59,Not Applicable,
Department for Business Innovation and Skills,Intellectual Property Office,04/03/2016,Information Technology,Patent Directorate,LA International Computer Consultants Lt,LA368792,3348.63,Not Applicable,
Department for Business Innovation and Skills,Intellectual Property Office,04/03/2016,Information Technology,Patent Directorate,LA International Computer Consultants Lt,LA368793,4682.25,Not Applicable,
Department for Business Innovation and Skills,Intellectual Property Office,04/03/2016,Staff Costs,People Places & Serv Direct,Acorn Recruitment Ltd,APS02779CN,-1148.93,Not Applicable,
Department for Business Innovation and Skills,Intellectual Property Office,04/03/2016,Staff Costs,People Places & Serv Direct,Acorn Recruitment Ltd,APS02781CN,-2098.90,Not Applicable,
Department for Business Innovation and Skills,Intellectual Property Office,04/03/2016,Supporting UK Business,Innovation Directorate,NSure Consulting Ltd,134,4333.34,Not Applicable,
Department for Business Innovation and Skills,Intellectual Property Office,04/03/2016,Supporting UK Business,Innovation Directorate,LAWRIE INTELLECTUAL PROPERTY,107548,2500.00,Not Applicable,
Department for Business Innovation and Skills,Intellectual Property Office,04/03/2016,Supporting UK Business,Innovation Directorate,STEPHENS SCOWN LLP,54593,2166.67,Not Applicable,
Department for Business Innovation and Skills,Intellectual Property Office,04/03/2016,Supporting UK Business,Innovation Directorate,Ancient Hume Ltd,3495,2500.00,Not Applicable,
Department for Business Innovation and Skills,Intellectual Property Office,04/03/2016,Supporting UK Business,Innovation Directorate,Stannard & Stannard,450,2166.67,Not Applicable,
Department for Business Innovation and Skills,Intellectual Property Office,04/03/2016,Supporting UK Business,Innovation Directorate,Stannard & Stannard,VAT REFUNDS,-2599.98,Not Applicable,
Department for Business Innovation and Skills,Intellectual Property Office,04/03/2016,Supporting UK Business,Innovation Directorate,Alistair Hamilton IP,10555,2500.00,Not Applicable,
Department for Business Innovation and Skills,Intellectual Property Office,04/03/2016,Supporting UK Business,Innovation Directorate,Temple Bright LLP,9357,2166.67,Not Applicable,
Department for Business Innovation and Skills,Intellectual Property Office,04/03/2016,Supporting UK Business,Innovation Directorate,Marriott Harrison LLP,8268,2166.67,Not Applicable,
Department for Business Innovation and Skills,Intellectual Property Office,04/03/2016,Supporting UK Business,Innovation Directorate,Bawden and Associates Ltd,15-BAW1937,2166.67,Not Applicable,
Department for Business Innovation and Skills,Intellectual Property Office,04/03/2016,Supporting UK Business,Innovation Directorate,Bawden and Associates Ltd,15-BAW1938,2166.67,Not Applicable,
Department for Business Innovation and Skills,Intellectual Property Office,04/03/2016,Supporting UK Business,Innovation Directorate,Quaylane Ltd,I10932,2166.67,Not Applicable,
Department for Business Innovation and Skills,Intellectual Property Office,04/03/2016,Information Technology,IT Directorate,Open Connections Solutions Ltd,280073,65084.25,Not Applicable,
Department for Business Innovation and Skills,Intellectual Property Office,04/03/2016,Information Technology,IT Directorate,Comparex Ltd,150009749VRUKA,6720.00,Not Applicable,
Department for Business Innovation and Skills,Intellectual Property Office,04/03/2016,Staff Costs,IT Directorate,Stratagem Worldwide Limited,SW0172,1566.60,Not Applicable,
Department for Business Innovation and Skills,Intellectual Property Office,04/03/2016,Information Technology,IT Directorate,LA International Computer Consultants Lt,LA368791,1864.80,Not Applicable,
Department for Business Innovation and Skills,Intellectual Property Office,04/03/2016,Telecoms,IT Directorate,VODAFONE LIMITED,CN/UK10/012016/4,-4607.86,Not Applicable,
Department for Business Innovation and Skills,Intellectual Property Office,04/03/2016,Telecoms,IT Directorate,VODAFONE LIMITED,CN/UK10/090215/4,-2285.69,Not Applicable,
Department for Business Innovation and Skills,Intellectual Property Office,04/03/2016,Telecoms,IT Directorate,VODAFONE LIMITED,CN/UK10/092015/4,-17335.56,Not Applicable,
Department for Business Innovation and Skills,Intellectual Property Office,04/03/2016,Telecoms,IT Directorate,VODAFONE LIMITED,CNUK101220154574,-768.46,Not Applicable,
Department for Business Innovation and Skills,Intellectual Property Office,04/03/2016,Telecoms,IT Directorate,VODAFONE LIMITED,UK10/012016/6964,11352.62,Not Applicable,
Department for Business Innovation and Skills,Intellectual Property Office,04/03/2016,Telecoms,IT Directorate,VODAFONE LIMITED,UK10/072015/5825,36406.68,Not Applicable,
Department for Business Innovation and Skills,Intellectual Property Office,04/03/2016,Telecoms,IT Directorate,VODAFONE LIMITED,UK10/102015/2983,11330.41,Not Applicable,
Department for Business Innovation and Skills,Intellectual Property Office,04/03/2016,Accommodation,People Places & Serv Direct,Department For Business Innovation & Ski,6.1511E+11,7111.27,Not Applicable,
Department for Business Innovation and Skills,Intellectual Property Office,04/03/2016,Accommodation,People Places & Serv Direct,Department For Business Innovation & Ski,6.1511E+11,7364.73,Not Applicable,
Department for Business Innovation and Skills,Intellectual Property Office,04/03/2016,Information Technology,Patent Directorate,European Patent Office,40254391,108935.87,Not Applicable,
Department for Business Innovation and Skills,Intellectual Property Office,07/03/2016,Office Supplies,People Places & Serv Direct,Mitie Facilities Services Ltd,100-91167073,28.00,Not Applicable,
Department for Business Innovation and Skills,Intellectual Property Office,07/03/2016,Miscellaneous Expenses General,People Places & Serv Direct,Mitie Facilities Services Ltd,100-91167073,12.30,Not Applicable,
Department for Business Innovation and Skills,Intellectual Property Office,07/03/2016,Staff Costs,Innovation Directorate,Caerphilly Borough Mind,40-15-16,1600.00,Not Applicable,
Department for Business Innovation and Skills,Intellectual Property Office,07/03/2016,Accommodation,People Places & Serv Direct,Townscape Products Limited,60024,13240.00,Not Applicable,
Department for Business Innovation and Skills,Intellectual Property Office,07/03/2016,Accommodation,People Places & Serv Direct,Townscape Products Limited,60032,6672.48,Not Applicable,
Department for Business Innovation and Skills,Intellectual Property Office,07/03/2016,Miscellaneous Expenses General,People Places & Serv Direct,Mitie Facilities Services Ltd,100-91167073,30.25,Not Applicable,
Department for Business Innovation and Skills,Intellectual Property Office,07/03/2016,Marketing & Publicity,Innovation Directorate,Solicitors Group,65818,695.00,Not Applicable,
Department for Business Innovation and Skills,Intellectual Property Office,07/03/2016,Marketing & Publicity,Innovation Directorate,Solicitors Group,65822,695.00,Not Applicable,
Department for Business Innovation and Skills,Intellectual Property Office,07/03/2016,Supporting UK Business,Innovation Directorate,Marks & Clerk LLP,104446,2500.00,Not Applicable,
Department for Business Innovation and Skills,Intellectual Property Office,07/03/2016,Supporting UK Business,Innovation Directorate,Maverick Advertising & Design Ltd,IN2084IPO,7488.75,Not Applicable,
Department for Business Innovation and Skills,Intellectual Property Office,07/03/2016,Information Technology,Innovation Directorate,UserZoom,2016-1532,23430.00,Not Applicable,
Department for Business Innovation and Skills,Intellectual Property Office,07/03/2016,Staff Costs,IT Directorate,British Standards Institution,94443179/1000,500.00,Not Applicable,
Department for Business Innovation and Skills,Intellectual Property Office,07/03/2016,Marketing & Publicity,Innovation Directorate,Solicitors Group,65816,695.00,Not Applicable,
Department for Business Innovation and Skills,Intellectual Property Office,07/03/2016,Marketing & Publicity,Innovation Directorate,Solicitors Group,65820,695.00,Not Applicable,
Department for Business Innovation and Skills,Intellectual Property Office,07/03/2016,Office Supplies,Patent Directorate,British Library,139766612,4101.40,Not Applicable,
Department for Business Innovation and Skills,Intellectual Property Office,07/03/2016,Office Supplies,Patent Directorate,Mitie Facilities Services Ltd,100-91167073,18.79,Not Applicable,
Department for Business Innovation and Skills,Intellectual Property Office,07/03/2016,Pay Costs,Patent Directorate,Brook Street (UK) Ltd,30628001,425.62,Not Applicable,
Department for Business Innovation and Skills,Intellectual Property Office,07/03/2016,Pay Costs,Patent Directorate,Brook Street (UK) Ltd,30628001,438.08,Not Applicable,
Department for Business Innovation and Skills,Intellectual Property Office,07/03/2016,Miscellaneous Expenses General,People Places & Serv Direct,Mitie Facilities Services Ltd,100-91167073,465.00,Not Applicable,
Department for Business Innovation and Skills,Intellectual Property Office,07/03/2016,Staff Costs,People Places & Serv Direct,OE Cam LLP,1846,3243.18,Not Applicable,
Department for Business Innovation and Skills,Intellectual Property Office,07/03/2016,Miscellaneous Expenses General,People Places & Serv Direct,OH Assist Limited,INV0001220,502.10,Not Applicable,
Department for Business Innovation and Skills,Intellectual Property Office,07/03/2016,Staff Costs,People Places & Serv Direct,Rhys Evans Consulting Ltd,72,2500.00,Not Applicable,
Department for Business Innovation and Skills,Intellectual Property Office,07/03/2016,Staff Costs,People Places & Serv Direct,Rhys Evans Consulting Ltd,73,2500.00,Not Applicable,
Department for Business Innovation and Skills,Intellectual Property Office,07/03/2016,Staff Costs,People Places & Serv Direct,Rhys Evans Consulting Ltd,74,1650.00,Not Applicable,
Department for Business Innovation and Skills,Intellectual Property Office,07/03/2016,Miscellaneous Expenses General,Finance Directorate,Mitie Facilities Services Ltd,100-91167073,114.75,Not Applicable,
Department for Business Innovation and Skills,Intellectual Property Office,07/03/2016,Pay Costs,Finance Directorate,Brook Street (UK) Ltd,30628001,485.81,Not Applicable,
Department for Business Innovation and Skills,Intellectual Property Office,07/03/2016,Pay Costs,Finance Directorate,Brook Street (UK) Ltd,30628001,542.01,Not Applicable,
Department for Business Innovation and Skills,Intellectual Property Office,07/03/2016,Pay Costs,Finance Directorate,Brook Street (UK) Ltd,30628001,489.88,Not Applicable,
Department for Business Innovation and Skills,Intellectual Property Office,07/03/2016,Miscellaneous Expenses General,People Places & Serv Direct,Mitie Facilities Services Ltd,100-91167073,29.25,Not Applicable,
Department for Business Innovation and Skills,Intellectual Property Office,07/03/2016,Miscellaneous Expenses General,Trade Mark Directorate,Mitie Facilities Services Ltd,100-91167073,769.55,Not Applicable,
Department for Business Innovation and Skills,Intellectual Property Office,07/03/2016,Pay Costs,Trade Mark Directorate,Brook Street (UK) Ltd,30628001,448.12,Not Applicable,
Department for Business Innovation and Skills,Intellectual Property Office,07/03/2016,Miscellaneous Expenses General,Projects,Mitie Facilities Services Ltd,100-91167073,14.10,Not Applicable,
Department for Business Innovation and Skills,Intellectual Property Office,08/03/2016,Pay Costs,People Places & Serv Direct,HM Passport Office,1129783,2273.18,Not Applicable,
Department for Business Innovation and Skills,Intellectual Property Office,08/03/2016,Accommodation,People Places & Serv Direct,Mitie Facilities Services Ltd,100/91167258,4404.48,Not Applicable,
Department for Business Innovation and Skills,Intellectual Property Office,08/03/2016,Travel & Subsistence,Innovation Directorate,Personal expenses,ER135551,597.15,Not Applicable,
Department for Business Innovation and Skills,Intellectual Property Office,08/03/2016,Office Supplies,Finance Directorate,Antalis,5634814,520.00,Not Applicable,
Department for Business Innovation and Skills,Intellectual Property Office,08/03/2016,Staff Costs,Finance Directorate,Capita Business Services  Ltd,X97891,7222.00,Not Applicable,
Department for Business Innovation and Skills,Intellectual Property Office,08/03/2016,Travel & Subsistence,International Policy Directorate,Personal expenses,ER135548,577.90,Not Applicable,
Department for Business Innovation and Skills,Intellectual Property Office,08/03/2016,Telecoms,IT Directorate,VODAFONE LIMITED,UK10/032016/7722,2768.40,Not Applicable,
Department for Business Innovation and Skills,Intellectual Property Office,08/03/2016,Accommodation,People Places & Serv Direct,EDF Energy 1 Ltd,1418250,1110.45,Not Applicable,
Department for Business Innovation and Skills,Intellectual Property Office,08/03/2016,Marketing & Publicity,Innovation Directorate,Compass Group PLC,1003274266,3556.50,Not Applicable,
Department for Business Innovation and Skills,Intellectual Property Office,08/03/2016,Marketing & Publicity,Innovation Directorate,Solicitors Group,65824,695.00,Not Applicable,
Department for Business Innovation and Skills,Intellectual Property Office,08/03/2016,Marketing & Publicity,Innovation Directorate,Advanstar Communications UK Ltd,200772,1000.00,Not Applicable,
Department for Business Innovation and Skills,Intellectual Property Office,08/03/2016,Postage & Delivery Costs,People Places & Serv Direct,CitySprint (UK) Ltd,1638517,2582.94,Not Applicable,
Department for Business Innovation and Skills,Intellectual Property Office,09/03/2016,Telecoms,IT Directorate,THREE,ABK74870844,719.50,Not Applicable,
Department for Business Innovation and Skills,Intellectual Property Office,09/03/2016,Staff Costs,Patent Directorate,News UK Commercial,9005607044,600.00,Not Applicable,
Department for Business Innovation and Skills,Intellectual Property Office,09/03/2016,Staff Costs,People Places & Serv Direct,J Alty,53311,521.60,Not Applicable,
Department for Business Innovation and Skills,Intellectual Property Office,09/03/2016,Miscellaneous Expenses General,People Places & Serv Direct,On Your Bike,33316,522.49,Not Applicable,
Department for Business Innovation and Skills,Intellectual Property Office,10/03/2016,Accommodation,People Places & Serv Direct,Acoustic Consultants Ltd,6781,1500.00,Not Applicable,
Department for Business Innovation and Skills,Intellectual Property Office,10/03/2016,Marketing & Publicity,Innovation Directorate,Aardman Animations Ltd,31774,1283.00,Not Applicable,
Department for Business Innovation and Skills,Intellectual Property Office,10/03/2016,Marketing & Publicity,Innovation Directorate,Bolt Removals Ltd,SI-530,645.00,Not Applicable,
Department for Business Innovation and Skills,Intellectual Property Office,10/03/2016,Travel & Subsistence,International Policy Directorate,Personal expenses,ER135549,585.00,Not Applicable,
Department for Business Innovation and Skills,Intellectual Property Office,10/03/2016,Postage & Delivery Costs,People Places & Serv Direct,Parcelforce Worldwide,9051737845,468.35,Not Applicable,
Department for Business Innovation and Skills,Intellectual Property Office,10/03/2016,Miscellaneous Expenses General,Trade Mark Directorate,Eversheds Solicitors LLP,91471202,5530.11,Not Applicable,
Department for Business Innovation and Skills,Intellectual Property Office,11/03/2016,Pay Costs,Finance Directorate,Accountancy Recruitment Wales,1985,567.65,Not Applicable,
Department for Business Innovation and Skills,Intellectual Property Office,11/03/2016,Accommodation,People Places & Serv Direct,Department For Business Innovation & Ski,6.1511E+11,55306.37,Not Applicable,
Department for Business Innovation and Skills,Intellectual Property Office,11/03/2016,Information Technology,IT Directorate,SANDHILL CONSULTANTS LTD,IN405855,23410.00,Not Applicable,
Department for Business Innovation and Skills,Intellectual Property Office,11/03/2016,Information Technology,IT Directorate,SANDHILL CONSULTANTS LTD,IN4058559,7695.00,Not Applicable,
Department for Business Innovation and Skills,Intellectual Property Office,11/03/2016,Information Technology,Patent Directorate,Capita Business Services  Ltd,LO10100489,2087.59,Not Applicable,
Department for Business Innovation and Skills,Intellectual Property Office,11/03/2016,Information Technology,Patent Directorate,Capita Business Services  Ltd,LO10100489,2283.27,Not Applicable,
Department for Business Innovation and Skills,Intellectual Property Office,11/03/2016,Information Technology,Patent Directorate,Capita Business Services  Ltd,LO10100489,2445.56,Not Applicable,
Department for Business Innovation and Skills,Intellectual Property Office,11/03/2016,Information Technology,Patent Directorate,Capita Business Services  Ltd,LO10100489,2448.91,Not Applicable,
Department for Business Innovation and Skills,Intellectual Property Office,11/03/2016,Information Technology,Patent Directorate,LA International Computer Consultants Lt,LA370263,2318.28,Not Applicable,
Department for Business Innovation and Skills,Intellectual Property Office,11/03/2016,Supporting UK Business,Innovation Directorate,IP ASSET  LLP,3809,2166.67,Not Applicable,
Department for Business Innovation and Skills,Intellectual Property Office,11/03/2016,Supporting UK Business,Innovation Directorate,Harrison Goddard Foote,386342,2500.00,Not Applicable,
Department for Business Innovation and Skills,Intellectual Property Office,11/03/2016,Supporting UK Business,Innovation Directorate,Lincoln IP,5597,2500.00,Not Applicable,
Department for Business Innovation and Skills,Intellectual Property Office,11/03/2016,Supporting UK Business,Innovation Directorate,Lincoln IP,5598,2500.00,Not Applicable,
Department for Business Innovation and Skills,Intellectual Property Office,11/03/2016,Supporting UK Business,Innovation Directorate,Marks & Clerk LLP,7069228,2500.00,Not Applicable,
Department for Business Innovation and Skills,Intellectual Property Office,11/03/2016,Supporting UK Business,Innovation Directorate,LAWRIE INTELLECTUAL PROPERTY,107451,2500.00,Not Applicable,
Department for Business Innovation and Skills,Intellectual Property Office,11/03/2016,Supporting UK Business,Innovation Directorate,LAWRIE INTELLECTUAL PROPERTY,107461,2500.00,Not Applicable,
Department for Business Innovation and Skills,Intellectual Property Office,11/03/2016,Supporting UK Business,Innovation Directorate,Lean IP,INV2056,2500.00,Not Applicable,
Department for Business Innovation and Skills,Intellectual Property Office,11/03/2016,Supporting UK Business,Innovation Directorate,Murgitroyd & Company Ltd,04998-16,2500.00,Not Applicable,
Department for Business Innovation and Skills,Intellectual Property Office,11/03/2016,Supporting UK Business,Innovation Directorate,Capella IP Ltd,16116,2500.00,Not Applicable,
Department for Business Innovation and Skills,Intellectual Property Office,11/03/2016,Supporting UK Business,Innovation Directorate,Berry Smith LLP,123921,2500.00,Not Applicable,
Department for Business Innovation and Skills,Intellectual Property Office,11/03/2016,Supporting UK Business,Innovation Directorate,Bellwether Green,2071,2500.00,Not Applicable,
Department for Business Innovation and Skills,Intellectual Property Office,11/03/2016,Supporting UK Business,International Policy Directorate,FOREIGN & COMMONWEALTH OFFICE,1085532,40000.00,Not Applicable,
Department for Business Innovation and Skills,Intellectual Property Office,11/03/2016,Supporting UK Business,International Policy Directorate,FOREIGN & COMMONWEALTH OFFICE,1085610,-20318.80,Not Applicable,
Department for Business Innovation and Skills,Intellectual Property Office,11/03/2016,Information Technology,IT Directorate,Capita Business Services  Ltd,LO10100489,3093.86,Not Applicable,
Department for Business Innovation and Skills,Intellectual Property Office,11/03/2016,Information Technology,IT Directorate,LA International Computer Consultants Lt,LA370264,2224.90,Not Applicable,
Department for Business Innovation and Skills,Intellectual Property Office,11/03/2016,Staff Costs,IT Directorate,Coleg Gwent,ODC003296,-1695.00,Not Applicable,
Department for Business Innovation and Skills,Intellectual Property Office,11/03/2016,Staff Costs,IT Directorate,Coleg Gwent,ODI032043,1695.00,Not Applicable,
Department for Business Innovation and Skills,Intellectual Property Office,11/03/2016,Staff Costs,IT Directorate,Coleg Gwent,ODI032103,1995.00,Not Applicable,
Department for Business Innovation and Skills,Intellectual Property Office,11/03/2016,Information Technology,IT Directorate,Capita Business Services  Ltd,LO10100489,2172.64,Not Applicable,
Department for Business Innovation and Skills,Intellectual Property Office,11/03/2016,Information Technology,IT Directorate,Capita Business Services  Ltd,LO10100489,2421.35,Not Applicable,
Department for Business Innovation and Skills,Intellectual Property Office,11/03/2016,Information Technology,IT Directorate,Capita Business Services  Ltd,LO10100489,2027.97,Not Applicable,
Department for Business Innovation and Skills,Intellectual Property Office,11/03/2016,Information Technology,IT Directorate,Capita Business Services  Ltd,LO10100489,2028.31,Not Applicable,
Department for Business Innovation and Skills,Intellectual Property Office,11/03/2016,Information Technology,IT Directorate,LA International Computer Consultants Lt,LA370262,1864.80,Not Applicable,
Department for Business Innovation and Skills,Intellectual Property Office,11/03/2016,Information Technology,IT Directorate,Kenson Network Engineering Limited,14719,1381.00,Not Applicable,
Department for Business Innovation and Skills,Intellectual Property Office,11/03/2016,Information Technology,IT Directorate,Capita Business Services  Ltd,LO10100489,10888.92,Not Applicable,
Department for Business Innovation and Skills,Intellectual Property Office,11/03/2016,Information Technology,IT Directorate,Capita Business Services  Ltd,LO10100489,2475.67,Not Applicable,
Department for Business Innovation and Skills,Intellectual Property Office,11/03/2016,Information Technology,IT Directorate,Capita Business Services  Ltd,LO10100489,4706.96,Not Applicable,
Department for Business Innovation and Skills,Intellectual Property Office,11/03/2016,Information Technology,IT Directorate,Capita Business Services  Ltd,LO10100489,2469.96,Not Applicable,
Department for Business Innovation and Skills,Intellectual Property Office,11/03/2016,Information Technology,IT Directorate,Capita Business Services  Ltd,LO10100489,3446.80,Not Applicable,
Department for Business Innovation and Skills,Intellectual Property Office,11/03/2016,Information Technology,IT Directorate,Capita Business Services  Ltd,LO10100489,5664.28,Not Applicable,
Department for Business Innovation and Skills,Intellectual Property Office,11/03/2016,Information Technology,IT Directorate,Capita Business Services  Ltd,LO10100489,2208.03,Not Applicable,
Department for Business Innovation and Skills,Intellectual Property Office,11/03/2016,Information Technology,IT Directorate,Capita Business Services  Ltd,LO10100489,8191.18,Not Applicable,
Department for Business Innovation and Skills,Intellectual Property Office,11/03/2016,Information Technology,IT Directorate,Capita Business Services  Ltd,LO10100489,3446.80,Not Applicable,
Department for Business Innovation and Skills,Intellectual Property Office,11/03/2016,Pay Costs,Finance Directorate,Accountancy Recruitment Wales,1986,547.66,Not Applicable,
Department for Business Innovation and Skills,Intellectual Property Office,11/03/2016,Pay Costs,Patent Directorate,Brook Street (UK) Ltd,30640815,425.62,Not Applicable,
Department for Business Innovation and Skills,Intellectual Property Office,11/03/2016,Pay Costs,Patent Directorate,Brook Street (UK) Ltd,30640815,349.28,Not Applicable,
Department for Business Innovation and Skills,Intellectual Property Office,11/03/2016,Staff Costs,People Places & Serv Direct,Cabinet Office,250014436,13520.20,Not Applicable,
Department for Business Innovation and Skills,Intellectual Property Office,11/03/2016,Staff Costs,People Places & Serv Direct,UK Commission for Employment and Skills,586,800.00,Not Applicable,
Department for Business Innovation and Skills,Intellectual Property Office,11/03/2016,Pay Costs,Finance Directorate,Brook Street (UK) Ltd,30640815,489.88,Not Applicable,
Department for Business Innovation and Skills,Intellectual Property Office,11/03/2016,Pay Costs,Finance Directorate,Brook Street (UK) Ltd,30640815,485.81,Not Applicable,
Department for Business Innovation and Skills,Intellectual Property Office,11/03/2016,Pay Costs,Finance Directorate,Brook Street (UK) Ltd,30640815,785.30,Not Applicable,
Department for Business Innovation and Skills,Intellectual Property Office,11/03/2016,Miscellaneous Expenses General,International Policy Directorate,Pick Everard,34072,5752.28,Not Applicable,
Department for Business Innovation and Skills,Intellectual Property Office,11/03/2016,Accommodation,International Policy Directorate,Willmott Dixon Holdings Limited,82825,394317.62,Not Applicable,
Department for Business Innovation and Skills,Intellectual Property Office,14/03/2016,Travel & Subsistence,Copyright and Enforcement Directorate,Personal expenses,ER135599,1579.38,Not Applicable,
Department for Business Innovation and Skills,Intellectual Property Office,14/03/2016,Telecoms,IT Directorate,Virgin Media,917218-01MAR,496.61,Not Applicable,
Department for Business Innovation and Skills,Intellectual Property Office,14/03/2016,Miscellaneous Expenses General,People Places & Serv Direct,Department For Business Innovation & Ski,6.1511E+11,4813.45,Not Applicable,
Department for Business Innovation and Skills,Intellectual Property Office,14/03/2016,Miscellaneous Expenses General,People Places & Serv Direct,Department For Business Innovation & Ski,6.1511E+11,3168.00,Not Applicable,
Department for Business Innovation and Skills,Intellectual Property Office,14/03/2016,Postage & Delivery Costs,People Places & Serv Direct,Royal Mail,9051747809,1288.05,Not Applicable,
Department for Business Innovation and Skills,Intellectual Property Office,15/03/2016,Supporting UK Business,Copyright and Enforcement Directorate,Copyright Hub Foundation,TCH0077,25000.00,Not Applicable,
Department for Business Innovation and Skills,Intellectual Property Office,15/03/2016,Accommodation,People Places & Serv Direct,Kemp Construction Ltd,6166,2862.00,Not Applicable,
Department for Business Innovation and Skills,Intellectual Property Office,15/03/2016,Information Technology,Patent Directorate,LA International Computer Consultants Lt,LA370922,2299.84,Not Applicable,
Department for Business Innovation and Skills,Intellectual Property Office,15/03/2016,Office Supplies,Finance Directorate,Antalis,5659958,520.00,Not Applicable,
Department for Business Innovation and Skills,Intellectual Property Office,15/03/2016,Travel & Subsistence,Finance Directorate,Companies House,S0001638366,403.00,Not Applicable,
Department for Business Innovation and Skills,Intellectual Property Office,15/03/2016,Marketing & Publicity,Innovation Directorate,Red Beetle Films Ltd,40,680.00,Not Applicable,
Department for Business Innovation and Skills,Intellectual Property Office,15/03/2016,Marketing & Publicity,Innovation Directorate,DB Systems,INV31492,738.45,Not Applicable,
Department for Business Innovation and Skills,Intellectual Property Office,15/03/2016,Information Technology,IT Directorate,LA International Computer Consultants Lt,LA367972,3659.38,Not Applicable,
Department for Business Innovation and Skills,Intellectual Property Office,15/03/2016,Information Technology,IT Directorate,LA International Computer Consultants Lt,LA369991,4157.05,Not Applicable,
Department for Business Innovation and Skills,Intellectual Property Office,15/03/2016,Telecoms,IT Directorate,British  Telecom,GP00002101M0314F,2885.50,Not Applicable,
Department for Business Innovation and Skills,Intellectual Property Office,15/03/2016,Information Technology,IT Directorate,LA International Computer Consultants Lt,LA367970,1841.96,Not Applicable,
Department for Business Innovation and Skills,Intellectual Property Office,15/03/2016,Accommodation,People Places & Serv Direct,Corona Energy,10924563,2874.18,Not Applicable,
Department for Business Innovation and Skills,Intellectual Property Office,15/03/2016,Marketing & Publicity,Innovation Directorate,Holiday Inn Express,2016004249,2100.00,Not Applicable,
Department for Business Innovation and Skills,Intellectual Property Office,15/03/2016,Travel & Subsistence,Innovation Directorate,Zenith,RHI01526894,484.77,Not Applicable,
Department for Business Innovation and Skills,Intellectual Property Office,15/03/2016,Marketing & Publicity,Innovation Directorate,Dun & Bradstreet Ltd,1436057,7569.00,Not Applicable,
Department for Business Innovation and Skills,Intellectual Property Office,15/03/2016,Accommodation,People Places & Serv Direct,Healthy Workstations Ltd,20250,-700.52,Not Applicable,
Department for Business Innovation and Skills,Intellectual Property Office,15/03/2016,Accommodation,People Places & Serv Direct,Healthy Workstations Ltd,28495,625.59,Not Applicable,
Department for Business Innovation and Skills,Intellectual Property Office,15/03/2016,Accommodation,People Places & Serv Direct,Healthy Workstations Ltd,28571,549.09,Not Applicable,
Department for Business Innovation and Skills,Intellectual Property Office,15/03/2016,Postage & Delivery Costs,People Places & Serv Direct,Neopost Ltd,92155193,972.59,Not Applicable,
Department for Business Innovation and Skills,Intellectual Property Office,15/03/2016,Staff Costs,People Places & Serv Direct,OE Cam LLP,1816,642.80,Not Applicable,
Department for Business Innovation and Skills,Intellectual Property Office,15/03/2016,Information Technology,International Policy Directorate,Miggle Ltd,MIG-IPO-001-009,3547.50,Not Applicable,
Department for Business Innovation and Skills,Intellectual Property Office,16/03/2016,Office Supplies,Copyright and Enforcement Directorate,Banner  Business Supplies Ltd,31331119,1328.20,Not Applicable,
Department for Business Innovation and Skills,Intellectual Property Office,16/03/2016,Staff Costs,People Places & Serv Direct,Capita Business Services  Ltd,X98619,3215.00,Not Applicable,
Department for Business Innovation and Skills,Intellectual Property Office,16/03/2016,Miscellaneous Expenses General,Innovation Directorate,G Von Graevenitz,CT-RES-023-12MAR,17887.50,Not Applicable,
Department for Business Innovation and Skills,Intellectual Property Office,16/03/2016,Supporting UK Business,Innovation Directorate,STEPHENS SCOWN LLP,55175,2166.67,Not Applicable,
Department for Business Innovation and Skills,Intellectual Property Office,16/03/2016,Supporting UK Business,Innovation Directorate,Metis Partners Ltd,911,2500.00,Not Applicable,
Department for Business Innovation and Skills,Intellectual Property Office,16/03/2016,Supporting UK Business,International Policy Directorate,FOREIGN & COMMONWEALTH OFFICE,1085565,3232.53,Not Applicable,
Department for Business Innovation and Skills,Intellectual Property Office,16/03/2016,Supporting UK Business,International Policy Directorate,FOREIGN & COMMONWEALTH OFFICE,1085799,13628.77,Not Applicable,
Department for Business Innovation and Skills,Intellectual Property Office,16/03/2016,Telecoms,IT Directorate,British  Telecom,25984884Q016,7040.38,Not Applicable,
Department for Business Innovation and Skills,Intellectual Property Office,16/03/2016,Telecoms,IT Directorate,British  Telecom,25985247Q017,7524.48,Not Applicable,
Department for Business Innovation and Skills,Intellectual Property Office,16/03/2016,Telecoms,IT Directorate,Virgin Media,442524001-04MAR,993.67,Not Applicable,
Department for Business Innovation and Skills,Intellectual Property Office,16/03/2016,Miscellaneous Expenses General,International Policy Directorate,Net Service S.p.A,117-15,123273.56,Not Applicable,
Department for Business Innovation and Skills,Intellectual Property Office,17/03/2016,Pay Costs,Finance Directorate,Accountancy Recruitment Wales,1932,1320.00,Not Applicable,
Department for Business Innovation and Skills,Intellectual Property Office,17/03/2016,Pay Costs,Finance Directorate,Accountancy Recruitment Wales,1995,595.63,Not Applicable,
Department for Business Innovation and Skills,Intellectual Property Office,17/03/2016,Information Technology,IT Directorate,Specialist Computer Centres Plc,OP-M133073,699.23,Not Applicable,
Department for Business Innovation and Skills,Intellectual Property Office,17/03/2016,Information Technology,IT Directorate,Probrand Ltd,OP-I534433,641.70,Not Applicable,
Department for Business Innovation and Skills,Intellectual Property Office,17/03/2016,Information Technology,IT Directorate,Probrand Ltd,OP/I534432,12732.59,Not Applicable,
Department for Business Innovation and Skills,Intellectual Property Office,17/03/2016,Marketing & Publicity,Innovation Directorate,Holland Alexander t/a Venturefest East M,VFEM16116,1100.00,Not Applicable,
Department for Business Innovation and Skills,Intellectual Property Office,17/03/2016,Pay Costs,Finance Directorate,Accountancy Recruitment Wales,1996,427.73,Not Applicable,
Department for Business Innovation and Skills,Intellectual Property Office,17/03/2016,Postage & Delivery Costs,People Places & Serv Direct,Neopost Ltd,92155787,1633.88,Not Applicable,
Department for Business Innovation and Skills,Intellectual Property Office,17/03/2016,Information Technology,International Policy Directorate,Specialist Computer Centres Plc,OP-M122949,704.40,Not Applicable,
Department for Business Innovation and Skills,Intellectual Property Office,17/03/2016,Information Technology,International Policy Directorate,Specialist Computer Centres Plc,OP-M125774,24142.95,Not Applicable,
Department for Business Innovation and Skills,Intellectual Property Office,17/03/2016,Information Technology,International Policy Directorate,Specialist Computer Centres Plc,OP-M126394,17656.96,Not Applicable,
Department for Business Innovation and Skills,Intellectual Property Office,17/03/2016,Miscellaneous Expenses General,International Policy Directorate,Eversheds LLP,91473453,47403.21,Not Applicable,
Department for Business Innovation and Skills,Intellectual Property Office,18/03/2016,Accommodation,People Places & Serv Direct,Department For Business Innovation & Ski,6.1511E+11,196996.00,Not Applicable,
Department for Business Innovation and Skills,Intellectual Property Office,18/03/2016,Staff Costs,Copyright and Enforcement Directorate,Hillscourt t/a NASUWT,INV002564,791.67,Not Applicable,
Department for Business Innovation and Skills,Intellectual Property Office,18/03/2016,Accommodation,People Places & Serv Direct,Townscape Products Limited,60071,3336.30,Not Applicable,
Department for Business Innovation and Skills,Intellectual Property Office,18/03/2016,Information Technology,Patent Directorate,Capita Business Services  Ltd,LO10101630,2283.27,Not Applicable,
Department for Business Innovation and Skills,Intellectual Property Office,18/03/2016,Information Technology,Patent Directorate,Capita Business Services  Ltd,LO10101630,2242.40,Not Applicable,
Department for Business Innovation and Skills,Intellectual Property Office,18/03/2016,Information Technology,Patent Directorate,Capita Business Services  Ltd,LO10101630,2098.00,Not Applicable,
Department for Business Innovation and Skills,Intellectual Property Office,18/03/2016,Information Technology,Patent Directorate,Capita Business Services  Ltd,LO10101630,1962.48,Not Applicable,
Department for Business Innovation and Skills,Intellectual Property Office,18/03/2016,Information Technology,Patent Directorate,Capita Business Services  Ltd,LO10101630,2098.00,Not Applicable,
Department for Business Innovation and Skills,Intellectual Property Office,18/03/2016,Travel & Subsistence,Copyright and Enforcement Directorate,Personal expenses,ER135598,554.00,Not Applicable,
Department for Business Innovation and Skills,Intellectual Property Office,18/03/2016,Computer Contracts,Finance Directorate,HM TREASURY,32978,17426.39,Not Applicable,
Department for Business Innovation and Skills,Intellectual Property Office,18/03/2016,Information Technology,IT Directorate,Capita Business Services  Ltd,LO10101630,3061.16,Not Applicable,
Department for Business Innovation and Skills,Intellectual Property Office,18/03/2016,Telecoms,IT Directorate,LA International Computer Consultants Lt,LA371460,2166.35,Not Applicable,
Department for Business Innovation and Skills,Intellectual Property Office,18/03/2016,Staff Costs,IT Directorate,QA Ltd,ISL133030,9500.00,Not Applicable,
Department for Business Innovation and Skills,Intellectual Property Office,18/03/2016,Staff Costs,IT Directorate,British Computer Society,1384303,1224.00,Not Applicable,
Department for Business Innovation and Skills,Intellectual Property Office,18/03/2016,Information Technology,IT Directorate,Capita Business Services  Ltd,LO10101630,2028.31,Not Applicable,
Department for Business Innovation and Skills,Intellectual Property Office,18/03/2016,Information Technology,IT Directorate,Capita Business Services  Ltd,LO10101630,2193.19,Not Applicable,
Department for Business Innovation and Skills,Intellectual Property Office,18/03/2016,Information Technology,IT Directorate,Capita Business Services  Ltd,LO10101630,1836.14,Not Applicable,
Department for Business Innovation and Skills,Intellectual Property Office,18/03/2016,Information Technology,IT Directorate,Capita Business Services  Ltd,LO10101630,2042.20,Not Applicable,
Department for Business Innovation and Skills,Intellectual Property Office,18/03/2016,Information Technology,IT Directorate,Capita Business Services  Ltd,LO10101630,2027.97,Not Applicable,
Department for Business Innovation and Skills,Intellectual Property Office,18/03/2016,Information Technology,IT Directorate,Capita Business Services  Ltd,LO10101630,2421.35,Not Applicable,
Department for Business Innovation and Skills,Intellectual Property Office,18/03/2016,Telecoms,IT Directorate,LA International Computer Consultants Lt,LA371459,1864.80,Not Applicable,
Department for Business Innovation and Skills,Intellectual Property Office,18/03/2016,Telecoms,IT Directorate,Softcat Ltd,INV01336984,33120.00,Not Applicable,
Department for Business Innovation and Skills,Intellectual Property Office,18/03/2016,Information Technology,IT Directorate,Capita Business Services  Ltd,LO10101630,11458.86,Not Applicable,
Department for Business Innovation and Skills,Intellectual Property Office,18/03/2016,Information Technology,IT Directorate,Capita Business Services  Ltd,LO10101630,2983.01,Not Applicable,
Department for Business Innovation and Skills,Intellectual Property Office,18/03/2016,Information Technology,IT Directorate,Capita Business Services  Ltd,LO10101630,11711.15,Not Applicable,
Department for Business Innovation and Skills,Intellectual Property Office,18/03/2016,Information Technology,IT Directorate,Capita Business Services  Ltd,LO10101630,2884.40,Not Applicable,
Department for Business Innovation and Skills,Intellectual Property Office,18/03/2016,Pay Costs,Patent Directorate,Brook Street (UK) Ltd,30651387,438.08,Not Applicable,
Department for Business Innovation and Skills,Intellectual Property Office,18/03/2016,Pay Costs,Patent Directorate,Brook Street (UK) Ltd,30651387,425.62,Not Applicable,
Department for Business Innovation and Skills,Intellectual Property Office,18/03/2016,Miscellaneous Expenses General,People Places & Serv Direct,Department For Business Innovation & Ski,6.1511E+11,2752.50,Not Applicable,
Department for Business Innovation and Skills,Intellectual Property Office,18/03/2016,Staff Costs,People Places & Serv Direct,Training Bytesize Ltd,3531,3200.00,Not Applicable,
Department for Business Innovation and Skills,Intellectual Property Office,18/03/2016,Pay Costs,Finance Directorate,Brook Street (UK) Ltd,30651387,485.81,Not Applicable,
Department for Business Innovation and Skills,Intellectual Property Office,18/03/2016,Pay Costs,Finance Directorate,Brook Street (UK) Ltd,30651387,883.78,Not Applicable,
Department for Business Innovation and Skills,Intellectual Property Office,18/03/2016,Pay Costs,Finance Directorate,Brook Street (UK) Ltd,30651387,489.88,Not Applicable,
Department for Business Innovation and Skills,Intellectual Property Office,18/03/2016,Pay Costs,Trade Mark Directorate,Brook Street (UK) Ltd,30651387,433.18,Not Applicable,
Department for Business Innovation and Skills,Intellectual Property Office,21/03/2016,Office Supplies,People Places & Serv Direct,Mitie Facilities Services Ltd,100-91167075,28.00,Not Applicable,
Department for Business Innovation and Skills,Intellectual Property Office,21/03/2016,Miscellaneous Expenses General,People Places & Serv Direct,Mitie Facilities Services Ltd,100-91167075,591.50,Not Applicable,
Department for Business Innovation and Skills,Intellectual Property Office,21/03/2016,Miscellaneous Expenses General,Finance Directorate,Mitie Facilities Services Ltd,100-91167075,176.95,Not Applicable,
Department for Business Innovation and Skills,Intellectual Property Office,21/03/2016,Legal & Hearings,Copyright and Enforcement Directorate,Government Legal Department,426541,973.50,Not Applicable,
Department for Business Innovation and Skills,Intellectual Property Office,21/03/2016,Accommodation,People Places & Serv Direct,HFX Ltd,25822,4272.89,Not Applicable,
Department for Business Innovation and Skills,Intellectual Property Office,21/03/2016,Miscellaneous Expenses General,Finance Directorate,Mitie Facilities Services Ltd,100-91167075,83.80,Not Applicable,
Department for Business Innovation and Skills,Intellectual Property Office,21/03/2016,Miscellaneous Expenses General,IT Directorate,Mitie Facilities Services Ltd,100-91167075,291.50,Not Applicable,
Department for Business Innovation and Skills,Intellectual Property Office,21/03/2016,Accommodation,People Places & Serv Direct,Pro Investments Limited,86387,18355.37,Not Applicable,
Department for Business Innovation and Skills,Intellectual Property Office,21/03/2016,Office Supplies,Patent Directorate,Mitie Facilities Services Ltd,100-91167075,18.79,Not Applicable,
Department for Business Innovation and Skills,Intellectual Property Office,21/03/2016,Legal & Hearings,Patent Directorate,Government Legal Department,426541,6461.15,Not Applicable,
Department for Business Innovation and Skills,Intellectual Property Office,21/03/2016,Miscellaneous Expenses General,People Places & Serv Direct,Mitie Facilities Services Ltd,100-91167075,328.00,Not Applicable,
Department for Business Innovation and Skills,Intellectual Property Office,21/03/2016,Staff Costs,People Places & Serv Direct,MyCSP Ltd,6442,3100.00,Not Applicable,
Department for Business Innovation and Skills,Intellectual Property Office,21/03/2016,Staff Costs,People Places & Serv Direct,P&MM Ltd,1025742,9587.68,Not Applicable,
Department for Business Innovation and Skills,Intellectual Property Office,21/03/2016,Staff Costs,People Places & Serv Direct,P&MM Ltd,503054,7896.10,Not Applicable,
Department for Business Innovation and Skills,Intellectual Property Office,21/03/2016,Staff Costs,People Places & Serv Direct,P&MM Ltd,503056,1244.32,Not Applicable,
Department for Business Innovation and Skills,Intellectual Property Office,21/03/2016,Miscellaneous Expenses General,Trade Mark Directorate,Mitie Facilities Services Ltd,100-91167075,1510.35,Not Applicable,
Department for Business Innovation and Skills,Intellectual Property Office,21/03/2016,Miscellaneous Expenses General,Trade Mark Directorate,Mitie Facilities Services Ltd,100-91167075,20.30,Not Applicable,
Department for Business Innovation and Skills,Intellectual Property Office,21/03/2016,Miscellaneous Expenses General,Projects,Mitie Facilities Services Ltd,100-91167075,28.15,Not Applicable,
Department for Business Innovation and Skills,Intellectual Property Office,22/03/2016,Accommodation,People Places & Serv Direct,BNPPRE Client Common Receipts,T210036,58131.52,Not Applicable,
Department for Business Innovation and Skills,Intellectual Property Office,22/03/2016,Staff Costs,People Places & Serv Direct,ASSOCIATION OF CHIEF EXECUTIVES,ACE0598,625.00,Not Applicable,
Department for Business Innovation and Skills,Intellectual Property Office,22/03/2016,Accommodation,People Places & Serv Direct,Sterk Systems,6053,2771.50,Not Applicable,
Department for Business Innovation and Skills,Intellectual Property Office,22/03/2016,Staff Costs,People Places & Serv Direct,Institute of Internal Communication,CON16-045,1100.00,Not Applicable,
Department for Business Innovation and Skills,Intellectual Property Office,22/03/2016,Supporting UK Business,Innovation Directorate,Venner Shipley  LLP,277967,2166.67,Not Applicable,
Department for Business Innovation and Skills,Intellectual Property Office,22/03/2016,Supporting UK Business,Innovation Directorate,LAWRIE INTELLECTUAL PROPERTY,107576,2500.00,Not Applicable,
Department for Business Innovation and Skills,Intellectual Property Office,22/03/2016,Supporting UK Business,Innovation Directorate,LAWRIE INTELLECTUAL PROPERTY,107620,2500.00,Not Applicable,
Department for Business Innovation and Skills,Intellectual Property Office,22/03/2016,Supporting UK Business,Innovation Directorate,Murgitroyd & Company Ltd,05198I-16,2500.00,Not Applicable,
Department for Business Innovation and Skills,Intellectual Property Office,22/03/2016,Supporting UK Business,Innovation Directorate,K. W. Peter & Co,101444,2500.00,Not Applicable,
Department for Business Innovation and Skills,Intellectual Property Office,22/03/2016,Supporting UK Business,Innovation Directorate,K. W. Peter & Co,101446,1870.75,Not Applicable,
Department for Business Innovation and Skills,Intellectual Property Office,22/03/2016,Miscellaneous Expenses General,Innovation Directorate,University of Hertfordshire,95740,19532.00,Not Applicable,
Department for Business Innovation and Skills,Intellectual Property Office,22/03/2016,Supporting UK Business,Innovation Directorate,Energy Development Group (EDG) Ltd,14,2166.67,Not Applicable,
Department for Business Innovation and Skills,Intellectual Property Office,22/03/2016,Supporting UK Business,Innovation Directorate,Energy Development Group (EDG) Ltd,15,2166.67,Not Applicable,
Department for Business Innovation and Skills,Intellectual Property Office,22/03/2016,Supporting UK Business,Innovation Directorate,WP Thompson,456942,2500.00,Not Applicable,
Department for Business Innovation and Skills,Intellectual Property Office,22/03/2016,Telecoms,IT Directorate,Talk Talk Business,14842775,451.23,Not Applicable,
Department for Business Innovation and Skills,Intellectual Property Office,22/03/2016,Postage & Delivery Costs,People Places & Serv Direct,Neopost Ltd,92118337,630.85,Not Applicable,
Department for Business Innovation and Skills,Intellectual Property Office,23/03/2016,Pay Costs,Finance Directorate,Accountancy Recruitment Wales,2005,591.63,Not Applicable,
Department for Business Innovation and Skills,Intellectual Property Office,23/03/2016,Information Technology,Patent Directorate,LA International Computer Consultants Lt,LA371992,4533.16,Not Applicable,
Department for Business Innovation and Skills,Intellectual Property Office,23/03/2016,Information Technology,Patent Directorate,LA International Computer Consultants Lt,LA371993,2351.95,Not Applicable,
Department for Business Innovation and Skills,Intellectual Property Office,23/03/2016,Supporting UK Business,Innovation Directorate,Swindell & Pearson Ltd,SIN091579,2166.67,Not Applicable,
Department for Business Innovation and Skills,Intellectual Property Office,23/03/2016,Supporting UK Business,Innovation Directorate,Swindell & Pearson Ltd,SIN091620,2166.67,Not Applicable,
Department for Business Innovation and Skills,Intellectual Property Office,23/03/2016,Supporting UK Business,Innovation Directorate,STEPHENS SCOWN LLP,55304,2166.67,Not Applicable,
Department for Business Innovation and Skills,Intellectual Property Office,23/03/2016,Supporting UK Business,Innovation Directorate,Innovate Now Ltd,2061,2166.67,Not Applicable,
Department for Business Innovation and Skills,Intellectual Property Office,23/03/2016,Supporting UK Business,Innovation Directorate,Innovate Now Ltd,2062,2166.67,Not Applicable,
Department for Business Innovation and Skills,Intellectual Property Office,23/03/2016,Supporting UK Business,Innovation Directorate,Appleyard Lees,120984,2500.00,Not Applicable,
Department for Business Innovation and Skills,Intellectual Property Office,23/03/2016,Supporting UK Business,Innovation Directorate,MPC3 LIMITED,398,2166.67,Not Applicable,
Department for Business Innovation and Skills,Intellectual Property Office,23/03/2016,Supporting UK Business,Innovation Directorate,MPC3 LIMITED,399,2166.67,Not Applicable,
Department for Business Innovation and Skills,Intellectual Property Office,23/03/2016,Supporting UK Business,Innovation Directorate,MPC3 LIMITED,400,2166.67,Not Applicable,
Department for Business Innovation and Skills,Intellectual Property Office,23/03/2016,Supporting UK Business,Innovation Directorate,Everedge IP UK Limited,IPO001,2166.67,Not Applicable,
Department for Business Innovation and Skills,Intellectual Property Office,23/03/2016,Telecoms,IT Directorate,British  Telecom,VP02239170M17101,7103.47,Not Applicable,
Department for Business Innovation and Skills,Intellectual Property Office,23/03/2016,Information Technology,IT Directorate,Oracle Corporation UK Limited,1528470,2351.25,Not Applicable,
Department for Business Innovation and Skills,Intellectual Property Office,23/03/2016,Information Technology,IT Directorate,Snowbound Software Corporation,2016-134,1464.05,Not Applicable,
Department for Business Innovation and Skills,Intellectual Property Office,23/03/2016,Legal & Hearings,Patent Directorate,Government Legal Department,426645,1809.05,Not Applicable,
Department for Business Innovation and Skills,Intellectual Property Office,23/03/2016,Legal & Hearings,Patent Directorate,Government Legal Department,426645,50.00,Not Applicable,
Department for Business Innovation and Skills,Intellectual Property Office,23/03/2016,Information Technology,Patent Directorate,STN,9340292813,11621.16,Not Applicable,
Department for Business Innovation and Skills,Intellectual Property Office,23/03/2016,Pay Costs,Finance Directorate,Accountancy Recruitment Wales,2006,523.67,Not Applicable,
Department for Business Innovation and Skills,Intellectual Property Office,23/03/2016,Travel & Subsistence,People Places & Serv Direct,Personal expenses,ER135670,729.45,Not Applicable,
Department for Business Innovation and Skills,Intellectual Property Office,23/03/2016,Legal & Hearings,Trade Mark Directorate,Government Legal Department,426645,8112.06,Not Applicable,
Department for Business Innovation and Skills,Intellectual Property Office,24/03/2016,Information Technology,IT Directorate,Oracle Corporation UK Limited,1528473,1977.07,Not Applicable,
Department for Business Innovation and Skills,Intellectual Property Office,24/03/2016,Information Technology,IT Directorate,Oracle Corporation UK Limited,1528488,4846.15,Not Applicable,
Department for Business Innovation and Skills,Intellectual Property Office,24/03/2016,Marketing & Publicity,Innovation Directorate,Sterling Integrity,INV-0909,945.00,Not Applicable,
Department for Business Innovation and Skills,Intellectual Property Office,24/03/2016,Information Technology,International Policy Directorate,Specialist Computer Centres Plc,OP-M138002,2245.73,Not Applicable,
Department for Business Innovation and Skills,Intellectual Property Office,29/03/2016,Accommodation,People Places & Serv Direct,Mitie Facilities Services Ltd,100-91170868,1915.76,Not Applicable,
Department for Business Innovation and Skills,Intellectual Property Office,29/03/2016,Information Technology,Patent Directorate,Capita Business Services  Ltd,LO10102533,2242.40,Not Applicable,
Department for Business Innovation and Skills,Intellectual Property Office,29/03/2016,Information Technology,Patent Directorate,Capita Business Services  Ltd,LO10102533,2283.27,Not Applicable,
Department for Business Innovation and Skills,Intellectual Property Office,29/03/2016,Information Technology,Patent Directorate,Capita Business Services  Ltd,LO10102533,2361.92,Not Applicable,
Department for Business Innovation and Skills,Intellectual Property Office,29/03/2016,Information Technology,Patent Directorate,Capita Business Services  Ltd,LO10102533,2098.00,Not Applicable,
Department for Business Innovation and Skills,Intellectual Property Office,29/03/2016,Information Technology,Patent Directorate,Capita Business Services  Ltd,LO10102533,1989.00,Not Applicable,
Department for Business Innovation and Skills,Intellectual Property Office,29/03/2016,Information Technology,IT Directorate,Capita Business Services  Ltd,LO10102533,3061.16,Not Applicable,
Department for Business Innovation and Skills,Intellectual Property Office,29/03/2016,Information Technology,IT Directorate,Nintex UK Ltd,UKI03783,6000.00,Not Applicable,
Department for Business Innovation and Skills,Intellectual Property Office,29/03/2016,Information Technology,IT Directorate,Capita Business Services  Ltd,LO10102533,2172.64,Not Applicable,
Department for Business Innovation and Skills,Intellectual Property Office,29/03/2016,Information Technology,IT Directorate,Capita Business Services  Ltd,LO10102533,2027.97,Not Applicable,
Department for Business Innovation and Skills,Intellectual Property Office,29/03/2016,Information Technology,IT Directorate,Capita Business Services  Ltd,LO10102533,2056.09,Not Applicable,
Department for Business Innovation and Skills,Intellectual Property Office,29/03/2016,Information Technology,IT Directorate,Capita Business Services  Ltd,LO10102533,2166.77,Not Applicable,
Department for Business Innovation and Skills,Intellectual Property Office,29/03/2016,Information Technology,IT Directorate,Capita Business Services  Ltd,LO10102533,2916.03,Not Applicable,
Department for Business Innovation and Skills,Intellectual Property Office,29/03/2016,Telecoms,IT Directorate,EE Ltd,1229956172,6746.96,Not Applicable,
Department for Business Innovation and Skills,Intellectual Property Office,29/03/2016,Information Technology,IT Directorate,Capita Business Services  Ltd,LO10102533,8826.94,Not Applicable,
Department for Business Innovation and Skills,Intellectual Property Office,29/03/2016,Information Technology,IT Directorate,Capita Business Services  Ltd,LO10102533,11348.62,Not Applicable,
Department for Business Innovation and Skills,Intellectual Property Office,29/03/2016,Information Technology,IT Directorate,Capita Business Services  Ltd,LO10102533,2525.85,Not Applicable,
Department for Business Innovation and Skills,Intellectual Property Office,29/03/2016,Marketing & Publicity,Innovation Directorate,UK Business Shows Ltd,TWBS-2016-04,645.00,Not Applicable,
Department for Business Innovation and Skills,Intellectual Property Office,30/03/2016,Marketing & Publicity,Innovation Directorate,Ruggerbug,03-0009,543.00,Not Applicable,
Department for Business Innovation and Skills,Intellectual Property Office,30/03/2016,Accommodation,People Places & Serv Direct,Department For Business Innovation & Ski,6.1511E+11,65333.64,Not Applicable,
Department for Business Innovation and Skills,Intellectual Property Office,30/03/2016,Travel & Subsistence,Copyright and Enforcement Directorate,Personal expenses,ER135717,538.59,Not Applicable,
Department for Business Innovation and Skills,Intellectual Property Office,30/03/2016,Office Supplies,Finance Directorate,Antalis,5684846,520.00,Not Applicable,
Department for Business Innovation and Skills,Intellectual Property Office,30/03/2016,Travel & Subsistence,Innovation Directorate,Personal expenses,ER135785,557.26,Not Applicable,
Department for Business Innovation and Skills,Intellectual Property Office,30/03/2016,Travel & Subsistence,Patent Directorate,Personal expenses,ER135543,555.21,Not Applicable,
Department for Business Innovation and Skills,Intellectual Property Office,30/03/2016,Staff Costs,People Places & Serv Direct,J Alty,53328,518.70,Not Applicable,
Department for Business Innovation and Skills,Intellectual Property Office,30/03/2016,Miscellaneous Expenses General,People Places & Serv Direct,Celtech Consultancy Ltd,AI/0378/15/01,2500.00,Not Applicable,
Department for Business Innovation and Skills,Intellectual Property Office,30/03/2016,Legal & Hearings,Projects,Marten Walsh Cherer Ltd,91446A,2611.65,Not Applicable,
Department for Business Innovation and Skills,Intellectual Property Office,30/03/2016,Information Technology,International Policy Directorate,Specialist Computer Centres Plc,OP/M138534,15271.84,Not Applicable,
Department for Business Innovation and Skills,Intellectual Property Office,30/03/2016,Miscellaneous Expenses General,International Policy Directorate,Robin Jacob,53331,1617.00,Not Applicable,
Department for Business Innovation and Skills,Intellectual Property Office,31/03/2016,Travel & Subsistence,People Places & Serv Direct,Veezu Ltd T/A Dragon Taxis (Newport),144,173.40,Not Applicable,
Department for Business Innovation and Skills,Intellectual Property Office,31/03/2016,Pay Costs,Finance Directorate,Accountancy Recruitment Wales,2016,1198.50,Not Applicable,
Department for Business Innovation and Skills,Intellectual Property Office,31/03/2016,Travel & Subsistence,People Places & Serv Direct,Veezu Ltd T/A Dragon Taxis (Newport),144,11.40,Not Applicable,
Department for Business Innovation and Skills,Intellectual Property Office,31/03/2016,Pay Costs,Finance Directorate,Accountancy Recruitment Wales,2014,471.71,Not Applicable,
Department for Business Innovation and Skills,Intellectual Property Office,31/03/2016,Travel & Subsistence,People Places & Serv Direct,Veezu Ltd T/A Dragon Taxis (Newport),144,23.40,Not Applicable,
Department for Business Innovation and Skills,Intellectual Property Office,31/03/2016,Accommodation,People Places & Serv Direct,Mitie Facilities Services Ltd,100-91183181,1180.85,Not Applicable,
Department for Business Innovation and Skills,Intellectual Property Office,31/03/2016,Travel & Subsistence,Copyright and Enforcement Directorate,Veezu Ltd T/A Dragon Taxis (Newport),144,109.80,Not Applicable,
Department for Business Innovation and Skills,Intellectual Property Office,31/03/2016,Pay Costs,People Places & Serv Direct,Brook Street (UK) Ltd,30662693,470.48,Not Applicable,
Department for Business Innovation and Skills,Intellectual Property Office,31/03/2016,Pay Costs,People Places & Serv Direct,Brook Street (UK) Ltd,30662693,458.89,Not Applicable,
Department for Business Innovation and Skills,Intellectual Property Office,31/03/2016,Travel & Subsistence,Patent Directorate,Veezu Ltd T/A Dragon Taxis (Newport),144,7.80,Not Applicable,
Department for Business Innovation and Skills,Intellectual Property Office,31/03/2016,Travel & Subsistence,Innovation Directorate,Veezu Ltd T/A Dragon Taxis (Newport),144,86.40,Not Applicable,
Department for Business Innovation and Skills,Intellectual Property Office,31/03/2016,Travel & Subsistence,Copyright and Enforcement Directorate,Veezu Ltd T/A Dragon Taxis (Newport),144,46.80,Not Applicable,
Department for Business Innovation and Skills,Intellectual Property Office,31/03/2016,Staff Costs,People Places & Serv Direct,Capita Business Services  Ltd,X93564,5093.50,Not Applicable,
Department for Business Innovation and Skills,Intellectual Property Office,31/03/2016,Information Technology,People Places & Serv Direct,Insight Direct (UK) Ltd,2778346,23977.00,Not Applicable,
Department for Business Innovation and Skills,Intellectual Property Office,31/03/2016,Travel & Subsistence,People Places & Serv Direct,Veezu Ltd T/A Dragon Taxis (Newport),144,28.80,Not Applicable,
Department for Business Innovation and Skills,Intellectual Property Office,31/03/2016,Travel & Subsistence,Innovation Directorate,Veezu Ltd T/A Dragon Taxis (Newport),144,94.80,Not Applicable,
Department for Business Innovation and Skills,Intellectual Property Office,31/03/2016,Supporting UK Business,Innovation Directorate,DJ Grigg,IP AUDIT,2166.67,Not Applicable,
Department for Business Innovation and Skills,Intellectual Property Office,31/03/2016,Miscellaneous Expenses General,Innovation Directorate,Veezu Ltd T/A Dragon Taxis (Newport),144,167.16,Not Applicable,
Department for Business Innovation and Skills,Intellectual Property Office,31/03/2016,Supporting UK Business,Innovation Directorate,Marks & Clerk LLP,7068627,2500.00,Not Applicable,
Department for Business Innovation and Skills,Intellectual Property Office,31/03/2016,Supporting UK Business,Innovation Directorate,LAWRIE INTELLECTUAL PROPERTY,107573,2500.00,Not Applicable,
Department for Business Innovation and Skills,Intellectual Property Office,31/03/2016,Supporting UK Business,Innovation Directorate,INNGOT LTD,M1603-4,2500.00,Not Applicable,
Department for Business Innovation and Skills,Intellectual Property Office,31/03/2016,Supporting UK Business,Innovation Directorate,DAN ANTHONY PRESENTATIONS LTD,146,800.00,Not Applicable,
Department for Business Innovation and Skills,Intellectual Property Office,31/03/2016,Supporting UK Business,Innovation Directorate,Wynne-Jones Laine and James LLP,85600,2500.00,Not Applicable,
Department for Business Innovation and Skills,Intellectual Property Office,31/03/2016,Supporting UK Business,Innovation Directorate,Culverstons IP,16-03-0005,2166.67,Not Applicable,
Department for Business Innovation and Skills,Intellectual Property Office,31/03/2016,Supporting UK Business,Innovation Directorate,Hutchinson IP Ltd,2441,2166.67,Not Applicable,
Department for Business Innovation and Skills,Intellectual Property Office,31/03/2016,Staff Costs,Innovation Directorate,NC Creative Group Ltd,INV-160093,800.00,Not Applicable,
Department for Business Innovation and Skills,Intellectual Property Office,31/03/2016,Travel & Subsistence,International Policy Directorate,Veezu Ltd T/A Dragon Taxis (Newport),144,355.08,Not Applicable,
Department for Business Innovation and Skills,Intellectual Property Office,31/03/2016,Telecoms,IT Directorate,Vodafone Corporate Ltd,79586570,4748.56,Not Applicable,
Department for Business Innovation and Skills,Intellectual Property Office,31/03/2016,Information Technology,IT Directorate,"Idera, Inc.",0172296-R,5977.40,Not Applicable,
Department for Business Innovation and Skills,Intellectual Property Office,31/03/2016,Information Technology,IT Directorate,Verisign,520002993,3764.52,Not Applicable,
Department for Business Innovation and Skills,Intellectual Property Office,31/03/2016,Information Technology,IT Directorate,Verisign,520003255,3764.52,Not Applicable,
Department for Business Innovation and Skills,Intellectual Property Office,31/03/2016,Marketing & Publicity,Innovation Directorate,Solicitors Group,66050,521.25,Not Applicable,
Department for Business Innovation and Skills,Intellectual Property Office,31/03/2016,Travel & Subsistence,Innovation Directorate,Veezu Ltd T/A Dragon Taxis (Newport),144,39.60,Not Applicable,
Department for Business Innovation and Skills,Intellectual Property Office,31/03/2016,Travel & Subsistence,Innovation Directorate,Veezu Ltd T/A Dragon Taxis (Newport),144,171.24,Not Applicable,
Department for Business Innovation and Skills,Intellectual Property Office,31/03/2016,Information Technology,Patent Directorate,European Patent Office,40255188,108500.12,Not Applicable,
Department for Business Innovation and Skills,Intellectual Property Office,31/03/2016,Miscellaneous Expenses General,Patent Directorate,Scipat Benelux BV,2016016,7088.47,Not Applicable,
Department for Business Innovation and Skills,Intellectual Property Office,31/03/2016,Pay Costs,Finance Directorate,Accountancy Recruitment Wales,2015,423.74,Not Applicable,
Department for Business Innovation and Skills,Intellectual Property Office,31/03/2016,Pay Costs,Patent Directorate,Brook Street (UK) Ltd,30662693,438.08,Not Applicable,
Department for Business Innovation and Skills,Intellectual Property Office,31/03/2016,Pay Costs,Patent Directorate,Brook Street (UK) Ltd,30662693,340.50,Not Applicable,
Department for Business Innovation and Skills,Intellectual Property Office,31/03/2016,Staff Costs,People Places & Serv Direct,Capita Business Services  Ltd,X100157,4102.50,Not Applicable,
Department for Business Innovation and Skills,Intellectual Property Office,31/03/2016,Staff Costs,People Places & Serv Direct,Worth Consulting Ltd,1285,5207.98,Not Applicable,
Department for Business Innovation and Skills,Intellectual Property Office,31/03/2016,Travel & Subsistence,Finance Directorate,Veezu Ltd T/A Dragon Taxis (Newport),144,7.80,Not Applicable,
Department for Business Innovation and Skills,Intellectual Property Office,31/03/2016,Pay Costs,Finance Directorate,Brook Street (UK) Ltd,30662693,489.88,Not Applicable,
Department for Business Innovation and Skills,Intellectual Property Office,31/03/2016,Pay Costs,Finance Directorate,Brook Street (UK) Ltd,30662693,485.81,Not Applicable,
Department for Business Innovation and Skills,Intellectual Property Office,31/03/2016,Pay Costs,Finance Directorate,Brook Street (UK) Ltd,30662693,630.56,Not Applicable,
Department for Business Innovation and Skills,Intellectual Property Office,31/03/2016,Miscellaneous Expenses General,Trade Mark Directorate,Eversheds Solicitors LLP,91477527,430.50,Not Applicable,
Department for Business Innovation and Skills,Intellectual Property Office,31/03/2016,Supporting UK Business,Trade Mark Directorate,Financial Services Commission,53185CR,-780.00,Not Applicable,
Department for Business Innovation and Skills,Intellectual Property Office,31/03/2016,Travel & Subsistence,Trade Mark Directorate,Veezu Ltd T/A Dragon Taxis (Newport),144,81.60,Not Applicable,
Department for Business Innovation and Skills,Intellectual Property Office,31/03/2016,Pay Costs,Trade Mark Directorate,Brook Street (UK) Ltd,30662693,442.15,Not Applicable,
Department for Business Innovation and Skills,Intellectual Property Office,31/03/2016,Travel & Subsistence,Trade Mark Directorate,Veezu Ltd T/A Dragon Taxis (Newport),144,24.60,Not Applicable,
Department for Business Innovation and Skills,Intellectual Property Office,31/03/2016,Travel & Subsistence,International Policy Directorate,Veezu Ltd T/A Dragon Taxis (Newport),144,55.56,Not Applicable,
Department for Business Innovation and Skills,Intellectual Property Office,01/04/2016,Staff Costs,People Places & Serv Direct,ACAS,01-6469.09REFUND,-1995.00,Not Applicable,
Department for Business Innovation and Skills,Intellectual Property Office,01/04/2016,Supporting UK Business,International Policy Directorate,HRG UK,689162358C,-2422.75,Not Applicable,
Department for Business Innovation and Skills,Intellectual Property Office,01/04/2016,Marketing & Publicity,Innovation Directorate,Job Done Marketing Ltd,04308REFUND,-699.00,Not Applicable,
